Workbook

Sheet Rapport des réponses 1
A1: Microsoft Excel 14.0 Rapport des réponses
A2: Feuille : [Nouveau_TAEG - Echéances apériodiques.xlsm]Nouveau TAEG
A3: Date du rapport : 22/05/2019 18:58:21
A4: Résultat : Le Solveur ne peut pas trouver de solution réalisable.
A5: Moteur du solveur
B6: Moteur : Évolutionnaire
B7: Heure de la solution : 52,656 secondes.
B8: Itérations : 0 Sous-problèmes : 269
A9: Options du solveur
B10: Temps max Illimité, Itérations Illimité, Precision 0,000001, Échelle automatique
B11: Convergence 0,0001, Taille de la population 100, Valeur de départ aléatoire 0, Taux de mutation 0,075, Durée sans amélioration 30 s
B12: Sous-problèmes max Illimité, Solutions de nombre entier max Illimité, Tolérance des nombres entiers 1%
A14: Cellule objectif (Valeur)
B15: Cellule | C15: Nom | D15: Valeur initiale | E15: Valeur finale
B16: $AO$375 | C16: Capital dû | D16: 170610.23 | E16: 170610.23
A19: Cellules variables
B20: Cellule | C20: Nom | D20: Valeur initiale | E20: Valeur finale | F20: Entier
B21: $AL$10 | C21: Échéance hors assurance | D21: 1530.014476 | E21: 1530.014476 | F21: Suite
A24: Contraintes
B25: Cellule | C25: Nom | D25: Valeur de la cellule | E25: Formule | F25: État | G25: Marge
B26: $AN$372 | C26: Amortissement | D26: 29389.77 | E26: $AN$372<=1 | F26: Lié | G26: 0
B27: $AN$372 | C27: Amortissement | D27: 29389.77 | E27: $AN$372>=1 | F27: Non lié | G27: 29388.77
B28: $AO$375 | C28: Capital dû | D28: 170610.23 | E28: $AO$375=0 | F28: Lié | G28: 0
B29: $AL$10 | C29: Échéance hors assurance | D29: 1530.014476 | E29: $AL$10<=$AO$10 | F29: Non lié | G29: 198469.9855
B30: $AL$10 | C30: Échéance hors assurance | D30: 1530.014476 | E30: $AL$10>=1 | F30: Non lié | G30: 1529.014476

Sheet Nouveau TAEG
B2: Calcul TAEG - Décret N° 2016-607 du 13 mai 2016 JO RF du 15 mai 2016 - Application 01/10/2016 | N2: Offre prêt (= pas d'échéance brisée) | Q2: =IF($B$4="Mensuelles","Echéancier réel (1 ère échéance brisée possible)","Echéancier réel (Les échéances sont apériodiques)") -> Echéancier réel (1 ère échéance brisée possible)
B3: Périodicité des échéances | C3: Nature des échéances | D3: =(IF($B$4="Apériodiques","Nombre d'échéances de périodicités diverses","Durée du prêt en mois")) -> Durée du prêt en mois | E3: Montant | F3: Taux nominal prêt | G3: Taux asurances obligatoires | H3: Date 1ère mise à disposition de fonds | I3: Date 1ère échéance | J3: Frais divers + Dossier + Garantie + Courtage + Evaluation du bien | K3: Coût annuel assurance incendie obligatoire | L3: Périodicité de paiement des primes assurances incendie obligatoires | M3: Frais de tenue de compte mensuels | N3: =P9 -> Taux Annuel Effectif Global T.A.E.G. | P3: =S9 -> Comparaison TRI.Paiement EXCEL en jours (base 365 jours) | Q3: =N3 -> Taux Annuel Effectif Global T.A.E.G. | R3: =P3 -> Comparaison TRI.Paiement EXCEL en jours (base 365 jours)
B4: Mensuelles | C4: Constantes | D4: 180 | E4: 200000 | F4: 0.025 | G4: 0.003 | H4: 2016-11-15 | I4: 2016-11-20 | J4: 10000 | K4: 600 | L4: Annuelle | M4: 2 | N4: =$Q$10 -> 0.04412 | P4: =IF($B$4="Apériodiques",$AX$380,S372) -> 0.04409593046 | Q4: =IF($B$4="Apériodiques",N4,AC10) -> 0.04430497214 | R4: =IF($B$4="Apériodiques",P4,AE10) -> 0.04429105818
B5: =IF($H$4>$I$4,"IMPOSSIBLE - Saisir des dates valides",IF($D$4>360,"IMPOSSIBLE - Maximum = 360","")) -> 
B6: Renseigner toutes les cellules matérialisées en vert……………puis cliquer sur le bouton "Calculs"
B7: Echéancier | I7: Tableau amortissement théorique "Offre prêt" (Pas d'échéance brisée) | P7: T.A.E.G. | U7: Echéancier réel (1 ère échéance brisée possible) Amortissements figés | AB7: T.A.E.G.
B8: =IF($D$4>360,IF($B$4="Apériodiques","Impossible - Nombre échéances limité à 360","Impossible - Durée maxi 360 mois"),IF(AND($C$4="Variables",$H$8<>0),"Saisir les montants d'échéances variables pour arriver à un capital restant dû de 0,00€ - Procéder à un ajustement sur la dernière échéance",IF($AD$745<0,"ATTENTION: Vos saisies conduisent à des amortissements négatifs",IF(AND($B$4="Apériodiques",$C$4="Variables"),"Saisir dates variables échéances ainsi que leurs montants également variables",IF($B$4="Apériodiques","Saisir dates variables échéances",IF($C$4="Variables","Saisir montant des échéances variables","Échéances")))))) -> Échéances | G8: Capital dû | H8: =IF($C$4="Constantes",O375,ROUND(H374,2)) -> 0
B9: Renseigner la période voulue de capitalisation et donc de calcul du T.A.E.G. | C9: Semaine + jours | D9: Rang | E9: Dates échéances | F9: Saisir dates échéances apériodiques | G9: Saisir Montants échéances variables | H9: Capital restant dû après paiement échéance | I9: Rang | J9: Échéance avec assurances | K9: Assurances Obligatoires | L9: Échéance hors assurance | M9: Intérêts | N9: Amortissement | O9: Capital dû | P9: Taux Annuel Effectif Global T.A.E.G. | S9: Comparaison TRI.Paiement EXCEL en jours (base 365 jours) | U9: Rang | V9: Échéance avec assurances | W9: Assurances Obligatoires | X9: Échéance hors assurance | Y9: Intérêts | Z9: Amortissements figés | AA9: Capital dû | AB9: Taux Annuel Effectif Global T.A.E.G. | AE9: Comparaison TRI.Paiement EXCEL en jours (base 365 jours)
B10: Échéance zéro réelle | C10: =IF(B4<>"Apériodiques",0,IF(C9="Année + jours",1,IF(C9="Mois + jours",2,3))) -> 0 | D10: 0 | E10: =H4 -> 2016-11-15 | O10: =AE380 -> 200000 | P10: =E4-J4 -> 190000 | Q10: 0.04412 | S10: =IF($B$4="Apériodiques",$AX$380,S372) -> 0.04409593046 | AA10: =O10 -> 200000 | AB10: =P10 -> 190000 | AC10: 0.04430497214 | AE10: =IF($B$4="Apériodiques",$AX$380,AE372) -> 0.04429105818
B11: =IF(E11="","","Échéance zéro fictive") -> Échéance zéro fictive | E11: =IF((EDATE(E12,-1))<=E10,E10,EDATE(E12,-1)) -> 2016-11-15 | S11: =P10 -> 190000 | AE11: =AB10 -> 190000
A12: 1 | B12: Date première échéance | D12: 1 | E12: =I4 -> 2016-11-20 | F12: =I4 -> 2016-11-20 | G12: 500 | H12: =AE382 -> 199083.09 | I12: =D12 -> 1 | J12: =Z382 -> 1383.58 | K12: =AA382 -> 50 | L12: =AB382 -> 1333.58 | M12: =AC382 -> 416.67 | N12: =AD382 -> 916.91 | O12: =O10-N12 -> 199083.09 | P12: =IF($C$10<>0,J12,IF(Y382>$D$4,0,(J12+W382+X382))) -> 1985.58 | Q12: =IF(Y382>$D$4,0,IF($B$4="Apériodiques",IF($C$10=1,(P12*((1+$Q$10)^(-K382)))*((1+$Q$10)^(-L382/C382)),IF($C$10=2,(P12*((1+$Q$10)^(-I382/12)))*((1+$Q$10)^(-J382/C382)),(P12*((1+$Q$10)^(-G382/52)))*((1+$Q$10)^(-H382/C382)))),P12*((1+$Q$10)^(-Y382/12)))) -> 1978.44898 | R12: =ROUND(R13+Q12,0) -> 190000 | S12: =-P12 -> -1985.58 | U12: =IF($E$10<>$E$11,I12,I12-1) -> 0 | V12: =X12+W12 -> 1035.22 | W12: =K12 -> 50 | X12: =Z12+Y12 -> 985.22 | Y12: =IF($B$4="Apériodiques",M12,ROUND((AA10*$F$4/12*P382)+(AA10*$F$4/C382*Q382),2)) -> 68.31 | Z12: 916.91 | AA12: 199083.09 | AB12: =IF($C$10<>0,V12,IF(Y382>$D$4,0,(V12+W382+X382))) -> 1637.22 | AC12: =IF(Y382>$D$4,0,IF($B$4="Apériodiques",IF($C$10=1,(P12*((1+$Q$10)^(-K382)))*((1+$Q$10)^(-L382/C382)),IF($C$10=2,(P12*((1+$Q$10)^(-I382/12)))*((1+$Q$10)^(-J382/C382)),(P12*((1+$Q$10)^(-G382/52)))*((1+$Q$10)^(-H382/C382)))),AB12*((1+$AC$10)^(-U12/12)))) -> 1637.22 | AD12: =(AD13+AC12)*((1+AC10)^(-AO382/C382)) -> 190000.0002 | AE12: =-AB12 -> -1637.22
A13: 2 | B13: =IF(A13>$D$4,"",IF(AND($B$4="Mensuelles",$C$4="Constantes"),"",IF(AND($C$4="Variables",A13=$D$4,$H$8<>0),"Ajuster dernière échéance pour capital dû 0,00€",IF(AND(F13<=F12,$B$4<>"Mensuelles"),"Saisir une date d'échéance valide",IF(AND(A13=$D$4,$H$8<>0),"Ajuster dernière échéance pour capital dû = 0,00€",IF(AND($B$4="Mensuelles",$C$4="Variables",G13=0),"Saisir Montant échéance variable",IF(AND($B$4="Apériodiques",$C$4="Constantes",F13=0),"Saisir date échéance variable",IF(AND($B$4="Apériodiques",$C$4="Variables",F13=0,G13=0),"Saisir date et montant échéance variables",IF(AND($B$4="Apériodiques",$C$4="Variables",F13<>0,G13=0),"Saisir montant échéance variable",IF(AND($B$4="Apériodiques",$C$4="Variables",F13=0,G13<>0),"Saisir date variable échéance","")))))))))) ->  | D13: 2 | E13: =IF(AND(D13>$D$4,$B$4="Mensuelles"),0,IF($B$4="Mensuelles",EDATE(E12,1),IF(F13<>0,F13,IF(D13>$D$4,0,EDATE(E12,1))))) -> 2016-12-20 | F13: 2018-05-28 | G13: 400 | H13: 198164.27 | I13: 2 | J13: =IF(D13=$D$4,L13+K13,Z383) -> 1383.58 | K13: =AA383 -> 50 | L13: =IF(D13=$D$4,N13+M13,AB383) -> 1333.58 | M13: =AC383 -> 414.76 | N13: =IF(D13=$D$4,O12,AD383) -> 918.82 | O13: =O12-N13 -> 198164.27 | P13: =IF($C$10<>0,J13,IF(Y383>$D$4,0,(J13+W383+X383))) -> 1385.58 | Q13: =IF(Y383>$D$4,0,IF($B$4="Apériodiques",IF($C$10=1,(P13*((1+$Q$10)^(-K383)))*((1+$Q$10)^(-L383/C383)),IF($C$10=2,(P13*((1+$Q$10)^(-I383/12)))*((1+$Q$10)^(-J383/C383)),(P13*((1+$Q$10)^(-G383/52)))*((1+$Q$10)^(-H383/C383)))),P13*((1+$Q$10)^(-Y383/12)))) -> 1375.645516 | R13: =R14+Q13 -> 188021.6838 | S13: -1385.58 | U13: =IF($E$10<>$E$11,I13,I13-1) -> 1 | V13: =X13+W13 -> 1383.58 | W13: 50 | X13: =Z13+Y13 -> 1333.58 | Y13: =IF(R13=0,0,IF($B$4="Apériodiques",M13,ROUND((AA12*$F$4/12*P383)+(AA12*$F$4/C383*Q383),2))) -> 414.76 | Z13: 918.82 | AA13: 198164.27 | AB13: =IF($C$10<>0,V13,IF(Y383>$D$4,0,(V13+W383+X383))) -> 1385.58 | AC13: =IF(Y383>$D$4,0,IF($B$4="Apériodiques",IF($C$10=1,(P13*((1+$Q$10)^(-K383)))*((1+$Q$10)^(-L383/C383)),IF($C$10=2,(P13*((1+$Q$10)^(-I383/12)))*((1+$Q$10)^(-J383/C383)),(P13*((1+$Q$10)^(-G383/52)))*((1+$Q$10)^(-H383/C383)))),AB13*((1+$AC$10)^(-U13/12)))) -> 1380.583442 | AD13: =AD14+AC13 -> 188475.3381 | AE13: -1385.58
A14: 3 | B14: =IF(A14>$D$4,"",IF(AND($B$4="Mensuelles",$C$4="Constantes"),"",IF(AND($C$4="Variables",A14=$D$4,$H$8<>0),"Ajuster dernière échéance pour capital dû 0,00€",IF(AND(F14<=F13,$B$4<>"Mensuelles"),"Saisir une date d'échéance valide",IF(AND(A14=$D$4,$H$8<>0),"Ajuster dernière échéance pour capital dû = 0,00€",IF(AND($B$4="Mensuelles",$C$4="Variables",G14=0),"Saisir Montant échéance variable",IF(AND($B$4="Apériodiques",$C$4="Constantes",F14=0),"Saisir date échéance variable",IF(AND($B$4="Apériodiques",$C$4="Variables",F14=0,G14=0),"Saisir date et montant échéance variables",IF(AND($B$4="Apériodiques",$C$4="Variables",F14<>0,G14=0),"Saisir montant échéance variable",IF(AND($B$4="Apériodiques",$C$4="Variables",F14=0,G14<>0),"Saisir date variable échéance","")))))))))) ->  | D14: 3 | E14: =IF(AND(D14>$D$4,$B$4="Mensuelles"),0,IF($B$4="Mensuelles",EDATE(E13,1),IF(F14<>0,F14,IF(D14>$D$4,0,EDATE(E13,1))))) -> 2017-01-20 | G14: =G13+1 -> 401 | H14: 197243.53 | I14: 3 | J14: 1383.58 | K14: 50 | L14: 1333.58 | M14: 412.84 | N14: 920.74 | O14: 197243.53 | P14: 1385.58 | Q14: 1370.705017 | R14: 186646.0383 | S14: -1385.58 | U14: 2 | V14: =X14+W14 -> 1383.58 | W14: =K14 -> 50 | X14: =Z14+Y14 -> 1333.58 | Y14: 412.84 | Z14: =N14 -> 920.74 | AA14: =O14 -> 197243.53 | AB14: 1385.58 | AC14: 1375.604903 | AD14: 187094.7547 | AE14: -1385.58
A15: 4 | D15: 4 | E15: 2017-02-20 | G15: =G14+1 -> 402 | H15: 196320.87 | I15: 4 | J15: 1383.58 | K15: 50 | L15: 1333.58 | M15: 410.92 | N15: 922.66 | O15: 196320.87 | P15: 1385.58 | Q15: 1365.782261 | R15: 185275.3333 | S15: -1385.58 | U15: 3 | V15: 1383.58 | W15: 50 | X15: 1333.58 | Y15: 410.92 | Z15: 922.66 | AA15: 196320.87 | AB15: 1385.58 | AC15: 1370.644316 | AD15: 185719.1498 | AE15: -1385.58
A16: 5 | D16: 5 | E16: 2017-03-20 | G16: 403 | H16: 195396.29 | I16: 5 | J16: 1383.58 | K16: 50 | L16: 1333.58 | M16: 409 | N16: 924.58 | O16: 195396.29 | P16: 1385.58 | Q16: 1360.877185 | R16: 183909.551 | S16: -1385.58 | U16: 4 | V16: 1383.58 | W16: 50 | X16: 1333.58 | Y16: 409 | Z16: 924.58 | AA16: 195396.29 | AB16: 1385.58 | AC16: 1365.701618 | AD16: 184348.5055 | AE16: -1385.58
A17: 6 | D17: 6 | E17: 2017-04-20 | G17: 404 | H17: 194469.79 | I17: 6 | J17: 1383.58 | K17: 50 | L17: 1333.58 | M17: 407.08 | N17: 926.5 | O17: 194469.79 | P17: 1385.58 | Q17: 1355.989725 | R17: 182548.6738 | S17: -1385.58 | U17: 5 | V17: 1383.58 | W17: 50 | X17: 1333.58 | Y17: 407.08 | Z17: 926.5 | AA17: 194469.79 | AB17: 1385.58 | AC17: 1360.776744 | AD17: 182982.8039 | AE17: -1385.58
A18: 7 | D18: 7 | E18: 2017-05-20 | G18: 405 | H18: 193541.36 | I18: 7 | J18: 1383.58 | K18: 50 | L18: 1333.58 | M18: 405.15 | N18: 928.43 | O18: 193541.36 | P18: 1385.58 | Q18: 1351.119818 | R18: 181192.6841 | S18: -1385.58 | U18: 6 | V18: 1383.58 | W18: 50 | X18: 1333.58 | Y18: 405.15 | Z18: 928.43 | AA18: 193541.36 | AB18: 1385.58 | AC18: 1355.86963 | AD18: 181622.0271 | AE18: -1385.58
A19: 8 | D19: 8 | E19: 2017-06-20 | G19: 406 | H19: 192610.99 | I19: 8 | J19: 1383.58 | K19: 50 | L19: 1333.58 | M19: 403.21 | N19: 930.37 | O19: 192610.99 | P19: 1385.58 | Q19: 1346.2674 | R19: 179841.5643 | S19: -1385.58 | U19: 7 | V19: 1383.58 | W19: 50 | X19: 1333.58 | Y19: 403.21 | Z19: 930.37 | AA19: 192610.99 | AB19: 1385.58 | AC19: 1350.980211 | AD19: 180266.1575 | AE19: -1385.58
A20: 9 | D20: 9 | E20: 2017-07-20 | G20: 407 | H20: 191678.68 | I20: 9 | J20: 1383.58 | K20: 50 | L20: 1333.58 | M20: 401.27 | N20: 932.31 | O20: 191678.68 | P20: 1385.58 | Q20: 1341.43241 | R20: 178495.2969 | S20: -1385.58 | U20: 8 | V20: 1383.58 | W20: 50 | X20: 1333.58 | Y20: 401.27 | Z20: 932.31 | AA20: 191678.68 | AB20: 1385.58 | AC20: 1346.108424 | AD20: 178915.1773 | AE20: -1385.58
A21: 10 | D21: 10 | E21: 2017-08-20 | G21: 408 | H21: 190744.43 | I21: 10 | J21: 1383.58 | K21: 50 | L21: 1333.58 | M21: 399.33 | N21: 934.25 | O21: 190744.43 | P21: 1385.58 | Q21: 1336.614784 | R21: 177153.8645 | S21: -1385.58 | U21: 9 | V21: 1383.58 | W21: 50 | X21: 1333.58 | Y21: 399.33 | Z21: 934.25 | AA21: 190744.43 | AB21: 1385.58 | AC21: 1341.254205 | AD21: 177569.0688 | AE21: -1385.58
A22: 11 | D22: 11 | E22: 2017-09-20 | G22: 409 | H22: 189808.23 | I22: 11 | J22: 1383.58 | K22: 50 | L22: 1333.58 | M22: 397.38 | N22: 936.2 | O22: 189808.23 | P22: 1385.58 | Q22: 1331.81446 | R22: 175817.2497 | S22: -1385.58 | U22: 10 | V22: 1383.58 | W22: 50 | X22: 1333.58 | Y22: 397.38 | Z22: 936.2 | AA22: 189808.23 | AB22: 1385.58 | AC22: 1336.417491 | AD22: 176227.8146 | AE22: -1385.58
A23: 12 | D23: 12 | E23: 2017-10-20 | G23: 410 | H23: 188870.08 | I23: 12 | J23: 1383.58 | K23: 50 | L23: 1333.58 | M23: 395.43 | N23: 938.15 | O23: 188870.08 | P23: 1385.58 | Q23: 1327.031376 | R23: 174485.4352 | S23: -1385.58 | U23: 11 | V23: 1383.58 | W23: 50 | X23: 1333.58 | Y23: 395.43 | Z23: 938.15 | AA23: 188870.08 | AB23: 1385.58 | AC23: 1331.598219 | AD23: 174891.3971 | AE23: -1385.58
A24: 13 | D24: 13 | E24: 2017-11-20 | G24: 411 | H24: 187929.98 | I24: 13 | J24: 1383.58 | K24: 50 | L24: 1333.58 | M24: 393.48 | N24: 940.1 | O24: 187929.98 | P24: 1985.58 | Q24: 1894.848274 | R24: 173158.4039 | S24: -1985.58 | U24: 12 | V24: 1383.58 | W24: 50 | X24: 1333.58 | Y24: 393.48 | Z24: 940.1 | AA24: 187929.98 | AB24: 1985.58 | AC24: 1901.341134 | AD24: 173559.7989 | AE24: -1985.58
A25: 14 | D25: 14 | E25: 2017-12-20 | G25: 412 | H25: 186987.92 | I25: 14 | J25: 1383.58 | K25: 50 | L25: 1333.58 | M25: 391.52 | N25: 942.06 | O25: 186987.92 | P25: 1385.58 | Q25: 1317.51668 | R25: 171263.5556 | S25: -1385.58 | U25: 13 | V25: 1383.58 | W25: 50 | X25: 1333.58 | Y25: 391.52 | Z25: 942.06 | AA25: 186987.92 | AB25: 1385.58 | AC25: 1322.011749 | AD25: 171658.4578 | AE25: -1385.58
A26: 15 | D26: 15 | E26: 2018-01-20 | G26: 413 | H26: 186043.9 | I26: 15 | J26: 1383.58 | K26: 50 | L26: 1333.58 | M26: 389.56 | N26: 944.02 | O26: 186043.9 | P26: 1385.58 | Q26: 1312.784945 | R26: 169946.0389 | S26: -1385.58 | U26: 14 | V26: 1383.58 | W26: 50 | X26: 1333.58 | Y26: 389.56 | Z26: 944.02 | AA26: 186043.9 | AB26: 1385.58 | AC26: 1317.244425 | AD26: 170336.446 | AE26: -1385.58
A27: 16 | D27: 16 | E27: 2018-02-20 | G27: 414 | H27: 185097.91 | I27: 16 | J27: 1383.58 | K27: 50 | L27: 1333.58 | M27: 387.59 | N27: 945.99 | O27: 185097.91 | P27: 1385.58 | Q27: 1308.070204 | R27: 168633.254 | S27: -1385.58 | U27: 15 | V27: 1383.58 | W27: 50 | X27: 1333.58 | Y27: 387.59 | Z27: 945.99 | AA27: 185097.91 | AB27: 1385.58 | AC27: 1312.494293 | AD27: 169019.2016 | AE27: -1385.58
A28: 17 | D28: 17 | E28: 2018-03-20 | G28: 415 | H28: 184149.95 | I28: 17 | J28: 1383.58 | K28: 50 | L28: 1333.58 | M28: 385.62 | N28: 947.96 | O28: 184149.95 | P28: 1385.58 | Q28: 1303.372395 | R28: 167325.1838 | S28: -1385.58 | U28: 16 | V28: 1383.58 | W28: 50 | X28: 1333.58 | Y28: 385.62 | Z28: 947.96 | AA28: 184149.95 | AB28: 1385.58 | AC28: 1307.761291 | AD28: 167706.7073 | AE28: -1385.58
A29: 18 | D29: 18 | E29: 2018-04-20 | G29: 416 | H29: 183200.02 | I29: 18 | J29: 1383.58 | K29: 50 | L29: 1333.58 | M29: 383.65 | N29: 949.93 | O29: 183200.02 | P29: 1385.58 | Q29: 1298.691458 | R29: 166021.8114 | S29: -1385.58 | U29: 17 | V29: 1383.58 | W29: 50 | X29: 1333.58 | Y29: 383.65 | Z29: 949.93 | AA29: 183200.02 | AB29: 1385.58 | AC29: 1303.045356 | AD29: 166398.946 | AE29: -1385.58
A30: 19 | D30: 19 | E30: 2018-05-20 | G30: 417 | H30: 182248.11 | I30: 19 | J30: 1383.58 | K30: 50 | L30: 1333.58 | M30: 381.67 | N30: 951.91 | O30: 182248.11 | P30: 1385.58 | Q30: 1294.027332 | R30: 164723.1199 | S30: -1385.58 | U30: 18 | V30: 1383.58 | W30: 50 | X30: 1333.58 | Y30: 381.67 | Z30: 951.91 | AA30: 182248.11 | AB30: 1385.58 | AC30: 1298.346428 | AD30: 165095.9007 | AE30: -1385.58
A31: 20 | D31: 20 | E31: 2018-06-20 | G31: 418 | H31: 181294.21 | I31: 20 | J31: 1383.58 | K31: 50 | L31: 1333.58 | M31: 379.68 | N31: 953.9 | O31: 181294.21 | P31: 1385.58 | Q31: 1289.379956 | R31: 163429.0926 | S31: -1385.58 | U31: 19 | V31: 1383.58 | W31: 50 | X31: 1333.58 | Y31: 379.68 | Z31: 953.9 | AA31: 181294.21 | AB31: 1385.58 | AC31: 1293.664444 | AD31: 163797.5543 | AE31: -1385.58
A32: 21 | D32: 21 | E32: 2018-07-20 | G32: 419 | H32: 180338.33 | I32: 21 | J32: 1383.58 | K32: 50 | L32: 1333.58 | M32: 377.7 | N32: 955.88 | O32: 180338.33 | P32: 1385.58 | Q32: 1284.749272 | R32: 162139.7126 | S32: -1385.58 | U32: 20 | V32: 1383.58 | W32: 50 | X32: 1333.58 | Y32: 377.7 | Z32: 955.88 | AA32: 180338.33 | AB32: 1385.58 | AC32: 1288.999344 | AD32: 162503.8898 | AE32: -1385.58
A33: 22 | D33: 22 | E33: 2018-08-20 | G33: 420 | H33: 179380.45 | I33: 22 | J33: 1383.58 | K33: 50 | L33: 1333.58 | M33: 375.7 | N33: 957.88 | O33: 179380.45 | P33: 1385.58 | Q33: 1280.135218 | R33: 160854.9633 | S33: -1385.58 | U33: 21 | V33: 1383.58 | W33: 50 | X33: 1333.58 | Y33: 375.7 | Z33: 957.88 | AA33: 179380.45 | AB33: 1385.58 | AC33: 1284.351067 | AD33: 161214.8905 | AE33: -1385.58
A34: 23 | D34: 23 | E34: 2018-09-20 | G34: 421 | H34: 178420.58 | I34: 23 | J34: 1383.58 | K34: 50 | L34: 1333.58 | M34: 373.71 | N34: 959.87 | O34: 178420.58 | P34: 1385.58 | Q34: 1275.537735 | R34: 159574.8281 | S34: -1385.58 | U34: 22 | V34: 1383.58 | W34: 50 | X34: 1333.58 | Y34: 373.71 | Z34: 959.87 | AA34: 178420.58 | AB34: 1385.58 | AC34: 1279.719552 | AD34: 159930.5394 | AE34: -1385.58
A35: 24 | D35: 24 | E35: 2018-10-20 | G35: 947.37 | H35: 177458.71 | I35: 24 | J35: 1383.58 | K35: 50 | L35: 1333.58 | M35: 371.71 | N35: 961.87 | O35: 177458.71 | P35: 1385.58 | Q35: 1270.956763 | R35: 158299.2904 | S35: -1385.58 | U35: 23 | V35: 1383.58 | W35: 50 | X35: 1333.58 | Y35: 371.71 | Z35: 961.87 | AA35: 177458.71 | AB35: 1385.58 | AC35: 1275.104739 | AD35: 158650.8198 | AE35: -1385.58
A36: 25 | D36: 25 | E36: 2018-11-20 | G36: 948.37 | H36: 176494.84 | I36: 25 | J36: 1383.58 | K36: 50 | L36: 1333.58 | M36: 369.71 | N36: 963.87 | O36: 176494.84 | P36: 1985.58 | Q36: 1814.780173 | R36: 157028.3336 | S36: -1985.58 | U36: 24 | V36: 1383.58 | W36: 50 | X36: 1333.58 | Y36: 369.71 | Z36: 963.87 | AA36: 176494.84 | AB36: 1985.58 | AC36: 1820.676129 | AD36: 157375.7151 | AE36: -1985.58
A37: 26 | D37: 26 | E37: 2018-12-20 | G37: 949.37 | H37: 175528.96 | I37: 26 | J37: 1383.58 | K37: 50 | L37: 1333.58 | M37: 367.7 | N37: 965.88 | O37: 175528.96 | P37: 1385.58 | Q37: 1261.844117 | R37: 155213.5535 | S37: -1385.58 | U37: 25 | V37: 1383.58 | W37: 50 | X37: 1333.58 | Y37: 367.7 | Z37: 965.88 | AA37: 175528.96 | AB37: 1385.58 | AC37: 1265.924978 | AD37: 155555.039 | AE37: -1385.58
A38: 27 | D38: 27 | E38: 2019-01-20 | G38: 950.37 | H38: 174561.07 | I38: 27 | J38: 1383.58 | K38: 50 | L38: 1333.58 | M38: 365.69 | N38: 967.89 | O38: 174561.07 | P38: 1385.58 | Q38: 1257.312325 | R38: 153951.7093 | S38: -1385.58 | U38: 26 | V38: 1383.58 | W38: 50 | X38: 1333.58 | Y38: 365.69 | Z38: 967.89 | AA38: 174561.07 | AB38: 1385.58 | AC38: 1261.359909 | AD38: 154289.114 | AE38: -1385.58
A39: 28 | D39: 28 | E39: 2019-02-20 | G39: 951.37 | H39: 173591.16 | I39: 28 | J39: 1383.58 | K39: 50 | L39: 1333.58 | M39: 363.67 | N39: 969.91 | O39: 173591.16 | P39: 1385.58 | Q39: 1252.796808 | R39: 152694.397 | S39: -1385.58 | U39: 27 | V39: 1383.58 | W39: 50 | X39: 1333.58 | Y39: 363.67 | Z39: 969.91 | AA39: 173591.16 | AB39: 1385.58 | AC39: 1256.811303 | AD39: 153027.7541 | AE39: -1385.58
A40: 29 | D40: 29 | E40: 2019-03-20 | G40: 952.37 | H40: 172619.23 | I40: 29 | J40: 1383.58 | K40: 50 | L40: 1333.58 | M40: 361.65 | N40: 971.93 | O40: 172619.23 | P40: 1385.58 | Q40: 1248.297509 | R40: 151441.6002 | S40: -1385.58 | U40: 28 | V40: 1383.58 | W40: 50 | X40: 1333.58 | Y40: 361.65 | Z40: 971.93 | AA40: 172619.23 | AB40: 1385.58 | AC40: 1252.2791 | AD40: 151770.9428 | AE40: -1385.58
A41: 30 | D41: 30 | E41: 2019-04-20 | G41: 953.37 | H41: 171645.27 | I41: 30 | J41: 1383.58 | K41: 50 | L41: 1333.58 | M41: 359.62 | N41: 973.96 | O41: 171645.27 | P41: 1385.58 | Q41: 1243.814368 | R41: 150193.3027 | S41: -1385.58 | U41: 29 | V41: 1383.58 | W41: 50 | X41: 1333.58 | Y41: 359.62 | Z41: 973.96 | AA41: 171645.27 | AB41: 1385.58 | AC41: 1247.76324 | AD41: 150518.6637 | AE41: -1385.58
A42: 31 | D42: 31 | E42: 2019-05-20 | G42: 954.37 | H42: 170669.28 | I42: 31 | J42: 1383.58 | K42: 50 | L42: 1333.58 | M42: 357.59 | N42: 975.99 | O42: 170669.28 | P42: 1385.58 | Q42: 1239.347328 | R42: 148949.4883 | S42: -1385.58 | U42: 30 | V42: 1383.58 | W42: 50 | X42: 1333.58 | Y42: 357.59 | Z42: 975.99 | AA42: 170669.28 | AB42: 1385.58 | AC42: 1243.263665 | AD42: 149270.9004 | AE42: -1385.58
A43: 32 | D43: 32 | E43: 2019-06-20 | G43: 955.37 | H43: 169691.26 | I43: 32 | J43: 1383.58 | K43: 50 | L43: 1333.58 | M43: 355.56 | N43: 978.02 | O43: 169691.26 | P43: 1385.58 | Q43: 1234.89633 | R43: 147710.141 | S43: -1385.58 | U43: 31 | V43: 1383.58 | W43: 50 | X43: 1333.58 | Y43: 355.56 | Z43: 978.02 | AA43: 169691.26 | AB43: 1385.58 | AC43: 1238.780316 | AD43: 148027.6368 | AE43: -1385.58
A44: 33 | D44: 33 | E44: 2019-07-20 | G44: 956.37 | H44: 168711.2 | I44: 33 | J44: 1383.58 | K44: 50 | L44: 1333.58 | M44: 353.52 | N44: 980.06 | O44: 168711.2 | P44: 1385.58 | Q44: 1230.461318 | R44: 146475.2447 | S44: -1385.58 | U44: 32 | V44: 1383.58 | W44: 50 | X44: 1333.58 | Y44: 353.52 | Z44: 980.06 | AA44: 168711.2 | AB44: 1385.58 | AC44: 1234.313135 | AD44: 146788.8565 | AE44: -1385.58
A45: 34 | D45: 34 | E45: 2019-08-20 | G45: 957.37 | H45: 167729.1 | I45: 34 | J45: 1383.58 | K45: 50 | L45: 1333.58 | M45: 351.48 | N45: 982.1 | O45: 167729.1 | P45: 1385.58 | Q45: 1226.042235 | R45: 145244.7834 | S45: -1385.58 | U45: 33 | V45: 1383.58 | W45: 50 | X45: 1333.58 | Y45: 351.48 | Z45: 982.1 | AA45: 167729.1 | AB45: 1385.58 | AC45: 1229.862063 | AD45: 145554.5433 | AE45: -1385.58
A46: 35 | D46: 35 | E46: 2019-09-20 | G46: 958.37 | H46: 166744.96 | I46: 35 | J46: 1383.58 | K46: 50 | L46: 1333.58 | M46: 349.44 | N46: 984.14 | O46: 166744.96 | P46: 1385.58 | Q46: 1221.639021 | R46: 144018.7411 | S46: -1385.58 | U46: 34 | V46: 1383.58 | W46: 50 | X46: 1333.58 | Y46: 349.44 | Z46: 984.14 | AA46: 166744.96 | AB46: 1385.58 | AC46: 1225.427041 | AD46: 144324.6813 | AE46: -1385.58
A47: 36 | D47: 36 | E47: 2019-10-20 | G47: 959.37 | H47: 165758.77 | I47: 36 | J47: 1383.58 | K47: 50 | L47: 1333.58 | M47: 347.39 | N47: 986.19 | O47: 165758.77 | P47: 1385.58 | Q47: 1217.251622 | R47: 142797.1021 | S47: -1385.58 | U47: 35 | V47: 1383.58 | W47: 50 | X47: 1333.58 | Y47: 347.39 | Z47: 986.19 | AA47: 165758.77 | AB47: 1385.58 | AC47: 1221.008013 | AD47: 143099.2542 | AE47: -1385.58
A48: 37 | D48: 37 | E48: 2019-11-20 | G48: 960.37 | H48: 164770.52 | I48: 37 | J48: 1383.58 | K48: 50 | L48: 1333.58 | M48: 345.33 | N48: 988.25 | O48: 164770.52 | P48: 1985.58 | Q48: 1738.095403 | R48: 141579.8505 | S48: -1985.58 | U48: 36 | V48: 1383.58 | W48: 50 | X48: 1333.58 | Y48: 345.33 | Z48: 988.25 | AA48: 164770.52 | AB48: 1985.58 | AC48: 1743.433362 | AD48: 141878.2462 | AE48: -1985.58
A49: 38 | D49: 38 | E49: 2019-12-20 | G49: 961.37 | H49: 163780.21 | I49: 38 | J49: 1383.58 | K49: 50 | L49: 1333.58 | M49: 343.27 | N49: 990.31 | O49: 163780.21 | P49: 1385.58 | Q49: 1208.524037 | R49: 139841.7551 | S49: -1385.58 | U49: 37 | V49: 1383.58 | W49: 50 | X49: 1333.58 | Y49: 343.27 | Z49: 990.31 | AA49: 163780.21 | AB49: 1385.58 | AC49: 1212.217706 | AD49: 140134.8128 | AE49: -1385.58
A50: 39 | D50: 39 | E50: 2020-01-20 | G50: 962.37 | H50: 162787.84 | I50: 39 | J50: 1383.58 | K50: 50 | L50: 1333.58 | M50: 341.21 | N50: 992.37 | O50: 162787.84 | P50: 1385.58 | Q50: 1204.183739 | R50: 138633.231 | S50: -1385.58 | U50: 38 | V50: 1383.58 | W50: 50 | X50: 1333.58 | Y50: 341.21 | Z50: 992.37 | AA50: 162787.84 | AB50: 1385.58 | AC50: 1207.846312 | AD50: 138922.5951 | AE50: -1385.58
A51: 40 | D51: 40 | E51: 2020-02-20 | G51: 963.37 | H51: 161793.4 | I51: 40 | J51: 1383.58 | K51: 50 | L51: 1333.58 | M51: 339.14 | N51: 994.44 | O51: 161793.4 | P51: 1385.58 | Q51: 1199.859028 | R51: 137429.0473 | S51: -1385.58 | U51: 39 | V51: 1383.58 | W51: 50 | X51: 1333.58 | Y51: 339.14 | Z51: 994.44 | AA51: 161793.4 | AB51: 1385.58 | AC51: 1203.490682 | AD51: 137714.7488 | AE51: -1385.58
A52: 41 | D52: 41 | E52: 2020-03-20 | G52: 964.37 | H52: 160796.89 | I52: 41 | J52: 1383.58 | K52: 50 | L52: 1333.58 | M52: 337.07 | N52: 996.51 | O52: 160796.89 | P52: 1385.58 | Q52: 1195.549849 | R52: 136229.1883 | S52: -1385.58 | U52: 40 | V52: 1383.58 | W52: 50 | X52: 1333.58 | Y52: 337.07 | Z52: 996.51 | AA52: 160796.89 | AB52: 1385.58 | AC52: 1199.150759 | AD52: 136511.2581 | AE52: -1385.58
A53: 42 | D53: 42 | E53: 2020-04-20 | G53: 965.37 | H53: 159798.3 | I53: 42 | J53: 1383.58 | K53: 50 | L53: 1333.58 | M53: 334.99 | N53: 998.59 | O53: 159798.3 | P53: 1385.58 | Q53: 1191.256147 | R53: 135033.6384 | S53: -1385.58 | U53: 41 | V53: 1383.58 | W53: 50 | X53: 1333.58 | Y53: 334.99 | Z53: 998.59 | AA53: 159798.3 | AB53: 1385.58 | AC53: 1194.826486 | AD53: 135312.1074 | AE53: -1385.58
A54: 43 | D54: 43 | E54: 2020-05-20 | G54: 966.37 | H54: 158797.63 | I54: 43 | J54: 1383.58 | K54: 50 | L54: 1333.58 | M54: 332.91 | N54: 1000.67 | O54: 158797.63 | P54: 1385.58 | Q54: 1186.977864 | R54: 133842.3823 | S54: -1385.58 | U54: 42 | V54: 1383.58 | W54: 50 | X54: 1333.58 | Y54: 332.91 | Z54: 1000.67 | AA54: 158797.63 | AB54: 1385.58 | AC54: 1190.517807 | AD54: 134117.2809 | AE54: -1385.58
A55: 44 | D55: 44 | E55: 2020-06-20 | G55: 967.37 | H55: 157794.88 | I55: 44 | J55: 1383.58 | K55: 50 | L55: 1333.58 | M55: 330.83 | N55: 1002.75 | O55: 157794.88 | P55: 1385.58 | Q55: 1182.714947 | R55: 132655.4044 | S55: -1385.58 | U55: 43 | V55: 1383.58 | W55: 50 | X55: 1333.58 | Y55: 330.83 | Z55: 1002.75 | AA55: 157794.88 | AB55: 1385.58 | AC55: 1186.224666 | AD55: 132926.7631 | AE55: -1385.58
A56: 45 | D56: 45 | E56: 2020-07-20 | G56: 968.37 | H56: 156790.04 | I56: 45 | J56: 1383.58 | K56: 50 | L56: 1333.58 | M56: 328.74 | N56: 1004.84 | O56: 156790.04 | P56: 1385.58 | Q56: 1178.467339 | R56: 131472.6895 | S56: -1385.58 | U56: 44 | V56: 1383.58 | W56: 50 | X56: 1333.58 | Y56: 328.74 | Z56: 1004.84 | AA56: 156790.04 | AB56: 1385.58 | AC56: 1181.947006 | AD56: 131740.5384 | AE56: -1385.58
A57: 46 | D57: 46 | E57: 2020-08-20 | G57: 969.37 | H57: 155783.11 | I57: 46 | J57: 1383.58 | K57: 50 | L57: 1333.58 | M57: 326.65 | N57: 1006.93 | O57: 155783.11 | P57: 1385.58 | Q57: 1174.234987 | R57: 130294.2221 | S57: -1385.58 | U57: 45 | V57: 1383.58 | W57: 50 | X57: 1333.58 | Y57: 326.65 | Z57: 1006.93 | AA57: 155783.11 | AB57: 1385.58 | AC57: 1177.684772 | AD57: 130558.5914 | AE57: -1385.58
A58: 47 | D58: 47 | E58: 2020-09-20 | G58: 970.37 | H58: 154774.08 | I58: 47 | J58: 1383.58 | K58: 50 | L58: 1333.58 | M58: 324.55 | N58: 1009.03 | O58: 154774.08 | P58: 1385.58 | Q58: 1170.017834 | R58: 129119.9871 | S58: -1385.58 | U58: 46 | V58: 1383.58 | W58: 50 | X58: 1333.58 | Y58: 324.55 | Z58: 1009.03 | AA58: 154774.08 | AB58: 1385.58 | AC58: 1173.437907 | AD58: 129380.9067 | AE58: -1385.58
A59: 48 | D59: 48 | E59: 2020-10-20 | G59: 971.37 | H59: 153762.95 | I59: 48 | J59: 1383.58 | K59: 50 | L59: 1333.58 | M59: 322.45 | N59: 1011.13 | O59: 153762.95 | P59: 1385.58 | Q59: 1165.815827 | R59: 127949.9693 | S59: -1385.58 | U59: 47 | V59: 1383.58 | W59: 50 | X59: 1333.58 | Y59: 322.45 | Z59: 1011.13 | AA59: 153762.95 | AB59: 1385.58 | AC59: 1169.206358 | AD59: 128207.4687 | AE59: -1385.58
A60: 49 | D60: 49 | E60: 2020-11-20 | G60: 972.37 | H60: 152749.71 | I60: 49 | J60: 1383.58 | K60: 50 | L60: 1333.58 | M60: 320.34 | N60: 1013.24 | O60: 152749.71 | P60: 1985.58 | Q60: 1664.651001 | R60: 126784.1535 | S60: -1985.58 | U60: 48 | V60: 1383.58 | W60: 50 | X60: 1333.58 | Y60: 320.34 | Z60: 1013.24 | AA60: 152749.71 | AB60: 1985.58 | AC60: 1669.467645 | AD60: 127038.2624 | AE60: -1985.58
A61: 50 | D61: 50 | E61: 2020-12-20 | G61: 973.37 | H61: 151734.36 | I61: 50 | J61: 1383.58 | K61: 50 | L61: 1333.58 | M61: 318.23 | N61: 1015.35 | O61: 151734.36 | P61: 1385.58 | Q61: 1157.457033 | R61: 125119.5025 | S61: -1385.58 | U61: 49 | V61: 1383.58 | W61: 50 | X61: 1333.58 | Y61: 318.23 | Z61: 1015.35 | AA61: 151734.36 | AB61: 1385.58 | AC61: 1160.788982 | AD61: 125368.7947 | AE61: -1385.58
A62: 51 | D62: 51 | E62: 2021-01-20 | G62: 974.37 | H62: 150716.89 | I62: 51 | J62: 1383.58 | K62: 50 | L62: 1333.58 | M62: 316.11 | N62: 1017.47 | O62: 150716.89 | P62: 1385.58 | Q62: 1153.300137 | R62: 123962.0454 | S62: -1385.58 | U62: 50 | V62: 1383.58 | W62: 50 | X62: 1333.58 | Y62: 316.11 | Z62: 1017.47 | AA62: 150716.89 | AB62: 1385.58 | AC62: 1156.603046 | AD62: 124208.0058 | AE62: -1385.58
A63: 52 | D63: 52 | E63: 2021-02-20 | G63: 975.37 | H63: 149697.3 | I63: 52 | J63: 1383.58 | K63: 50 | L63: 1333.58 | M63: 313.99 | N63: 1019.59 | O63: 149697.3 | P63: 1385.58 | Q63: 1149.15817 | R63: 122808.7453 | S63: -1385.58 | U63: 51 | V63: 1383.58 | W63: 50 | X63: 1333.58 | Y63: 313.99 | Z63: 1019.59 | AA63: 149697.3 | AB63: 1385.58 | AC63: 1152.432205 | AD63: 123051.4027 | AE63: -1385.58
A64: 53 | D64: 53 | E64: 2021-03-20 | G64: 976.37 | H64: 148675.59 | I64: 53 | J64: 1383.58 | K64: 50 | L64: 1333.58 | M64: 311.87 | N64: 1021.71 | O64: 148675.59 | P64: 1385.58 | Q64: 1145.031078 | R64: 121659.5871 | S64: -1385.58 | U64: 52 | V64: 1383.58 | W64: 50 | X64: 1333.58 | Y64: 311.87 | Z64: 1021.71 | AA64: 148675.59 | AB64: 1385.58 | AC64: 1148.276405 | AD64: 121898.9705 | AE64: -1385.58
A65: 54 | D65: 54 | E65: 2021-04-20 | G65: 977.37 | H65: 147651.75 | I65: 54 | J65: 1383.58 | K65: 50 | L65: 1333.58 | M65: 309.74 | N65: 1023.84 | O65: 147651.75 | P65: 1385.58 | Q65: 1140.918809 | R65: 120514.5561 | S65: -1385.58 | U65: 53 | V65: 1383.58 | W65: 50 | X65: 1333.58 | Y65: 309.74 | Z65: 1023.84 | AA65: 147651.75 | AB65: 1385.58 | AC65: 1144.135591 | AD65: 120750.6941 | AE65: -1385.58
A66: 55 | D66: 55 | E66: 2021-05-20 | G66: 978.37 | H66: 146625.78 | I66: 55 | J66: 1383.58 | K66: 50 | L66: 1333.58 | M66: 307.61 | N66: 1025.97 | O66: 146625.78 | P66: 1385.58 | Q66: 1136.821308 | R66: 119373.6372 | S66: -1385.58 | U66: 54 | V66: 1383.58 | W66: 50 | X66: 1333.58 | Y66: 307.61 | Z66: 1025.97 | AA66: 146625.78 | AB66: 1385.58 | AC66: 1140.009709 | AD66: 119606.5585 | AE66: -1385.58
A67: 56 | D67: 56 | E67: 2021-06-20 | G67: 979.37 | H67: 145597.67 | I67: 56 | J67: 1383.58 | K67: 50 | L67: 1333.58 | M67: 305.47 | N67: 1028.11 | O67: 145597.67 | P67: 1385.58 | Q67: 1132.738523 | R67: 118236.8159 | S67: -1385.58 | U67: 55 | V67: 1383.58 | W67: 50 | X67: 1333.58 | Y67: 305.47 | Z67: 1028.11 | AA67: 145597.67 | AB67: 1385.58 | AC67: 1135.898705 | AD67: 118466.5488 | AE67: -1385.58
A68: 57 | D68: 57 | E68: 2021-07-20 | G68: 980.37 | H68: 144567.42 | I68: 57 | J68: 1383.58 | K68: 50 | L68: 1333.58 | M68: 303.33 | N68: 1030.25 | O68: 144567.42 | P68: 1385.58 | Q68: 1128.670401 | R68: 117104.0774 | S68: -1385.58 | U68: 56 | V68: 1383.58 | W68: 50 | X68: 1333.58 | Y68: 303.33 | Z68: 1030.25 | AA68: 144567.42 | AB68: 1385.58 | AC68: 1131.802526 | AD68: 117330.6501 | AE68: -1385.58
A69: 58 | D69: 58 | E69: 2021-08-20 | G69: 981.37 | H69: 143535.02 | I69: 58 | J69: 1383.58 | K69: 50 | L69: 1333.58 | M69: 301.18 | N69: 1032.4 | O69: 143535.02 | P69: 1385.58 | Q69: 1124.61689 | R69: 115975.407 | S69: -1385.58 | U69: 57 | V69: 1383.58 | W69: 50 | X69: 1333.58 | Y69: 301.18 | Z69: 1032.4 | AA69: 143535.02 | AB69: 1385.58 | AC69: 1127.721119 | AD69: 116198.8476 | AE69: -1385.58
A70: 59 | D70: 59 | E70: 2021-09-20 | G70: 982.37 | H70: 142500.47 | I70: 59 | J70: 1383.58 | K70: 50 | L70: 1333.58 | M70: 299.03 | N70: 1034.55 | O70: 142500.47 | P70: 1385.58 | Q70: 1120.577936 | R70: 114850.7901 | S70: -1385.58 | U70: 58 | V70: 1383.58 | W70: 50 | X70: 1333.58 | Y70: 299.03 | Z70: 1034.55 | AA70: 142500.47 | AB70: 1385.58 | AC70: 1123.654429 | AD70: 115071.1265 | AE70: -1385.58
A71: 60 | D71: 60 | E71: 2021-10-20 | G71: 983.37 | H71: 141463.77 | I71: 60 | J71: 1383.58 | K71: 50 | L71: 1333.58 | M71: 296.88 | N71: 1036.7 | O71: 141463.77 | P71: 1385.58 | Q71: 1116.553488 | R71: 113730.2122 | S71: -1385.58 | U71: 59 | V71: 1383.58 | W71: 50 | X71: 1333.58 | Y71: 296.88 | Z71: 1036.7 | AA71: 141463.77 | AB71: 1385.58 | AC71: 1119.602405 | AD71: 113947.472 | AE71: -1385.58
A72: 61 | D72: 61 | E72: 2021-11-20 | G72: 984.37 | H72: 140424.91 | I72: 61 | J72: 1383.58 | K72: 50 | L72: 1333.58 | M72: 294.72 | N72: 1038.86 | O72: 140424.91 | P72: 1985.58 | Q72: 1594.310042 | R72: 112613.6587 | S72: -1985.58 | U72: 60 | V72: 1383.58 | W72: 50 | X72: 1333.58 | Y72: 294.72 | Z72: 1038.86 | AA72: 140424.91 | AB72: 1985.58 | AC72: 1598.639947 | AD72: 112827.8696 | AE72: -1985.58
A73: 62 | D73: 62 | E73: 2021-12-20 | G73: 985.37 | H73: 139383.88 | I73: 62 | J73: 1383.58 | K73: 50 | L73: 1333.58 | M73: 292.55 | N73: 1041.03 | O73: 139383.88 | P73: 1385.58 | Q73: 1108.547899 | R73: 111019.3487 | S73: -1385.58 | U73: 61 | V73: 1383.58 | W73: 50 | X73: 1333.58 | Y73: 292.55 | Z73: 1041.03 | AA73: 139383.88 | AB73: 1385.58 | AC73: 1111.542139 | AD73: 111229.2297 | AE73: -1385.58
A74: 63 | D74: 63 | E74: 2022-01-20 | G74: 986.37 | H74: 138340.68 | I74: 63 | J74: 1383.58 | K74: 50 | L74: 1333.58 | M74: 290.38 | N74: 1043.2 | O74: 138340.68 | P74: 1385.58 | Q74: 1104.566656 | R74: 109910.8008 | S74: -1385.58 | U74: 62 | V74: 1383.58 | W74: 50 | X74: 1333.58 | Y74: 290.38 | Z74: 1043.2 | AA74: 138340.68 | AB74: 1385.58 | AC74: 1107.533793 | AD74: 110117.6875 | AE74: -1385.58
A75: 64 | D75: 64 | E75: 2022-02-20 | G75: 987.37 | H75: 137295.31 | I75: 64 | J75: 1383.58 | K75: 50 | L75: 1333.58 | M75: 288.21 | N75: 1045.37 | O75: 137295.31 | P75: 1385.58 | Q75: 1100.59971 | R75: 108806.2341 | S75: -1385.58 | U75: 63 | V75: 1383.58 | W75: 50 | X75: 1333.58 | Y75: 288.21 | Z75: 1045.37 | AA75: 137295.31 | AB75: 1385.58 | AC75: 1103.539901 | AD75: 109010.1537 | AE75: -1385.58
A76: 65 | D76: 65 | E76: 2022-03-20 | G76: 988.37 | H76: =AE446 -> 136247.76 | I76: =D76 -> 65 | J76: 1383.58 | K76: 50 | L76: 1333.58 | M76: 286.03 | N76: 1047.55 | O76: 136247.76 | P76: =IF($C$10<>0,J76,IF(Y446>$D$4,0,(J76+W446+X446))) -> 1385.58 | Q76: =IF(Y446>$D$4,0,IF($B$4="Apériodiques",IF($C$10=1,(P76*((1+$Q$10)^(-K446)))*((1+$Q$10)^(-L446/C446)),IF($C$10=2,(P76*((1+$Q$10)^(-I446/12)))*((1+$Q$10)^(-J446/C446)),(P76*((1+$Q$10)^(-G446/52)))*((1+$Q$10)^(-H446/C446)))),P76*((1+$Q$10)^(-Y446/12)))) -> 1096.647012 | R76: 107705.6344 | S76: =-P76 -> -1385.58 | U76: 64 | V76: 1383.58 | W76: 50 | X76: 1333.58 | Y76: 286.03 | Z76: 1047.55 | AA76: 136247.76 | AB76: 1385.58 | AC76: 1099.560412 | AD76: 107906.6138 | AE76: =-AB76 -> -1385.58
A77: 66 | D77: 66 | E77: 2022-04-20 | G77: 989.37 | H77: 135198.03 | I77: 66 | J77: =IF(D77=$D$4,L77+K77,Z447) -> 1383.58 | K77: =AA447 -> 50 | L77: =IF(D77=$D$4,N77+M77,AB447) -> 1333.58 | M77: =AC447 -> 283.85 | N77: =IF(D77=$D$4,O76,AD447) -> 1049.73 | O77: =O76-N77 -> 135198.03 | P77: 1385.58 | Q77: 1092.708509 | R77: =R78+Q77 -> 106608.9874 | S77: -1385.58 | U77: =IF($E$10<>$E$11,I77,I77-1) -> 65 | V77: 1383.58 | W77: 50 | X77: 1333.58 | Y77: =IF(R77=0,0,IF($B$4="Apériodiques",M77,ROUND((AA76*$F$4/12*P447)+(AA76*$F$4/C447*Q447),2))) -> 283.85 | Z77: 1049.73 | AA77: 135198.03 | AB77: =IF($C$10<>0,V77,IF(Y447>$D$4,0,(V77+W447+X447))) -> 1385.58 | AC77: =IF(Y447>$D$4,0,IF($B$4="Apériodiques",IF($C$10=1,(P77*((1+$Q$10)^(-K447)))*((1+$Q$10)^(-L447/C447)),IF($C$10=2,(P77*((1+$Q$10)^(-I447/12)))*((1+$Q$10)^(-J447/C447)),(P77*((1+$Q$10)^(-G447/52)))*((1+$Q$10)^(-H447/C447)))),AB77*((1+$AC$10)^(-U77/12)))) -> 1095.595273 | AD77: =AD78+AC77 -> 106807.0534 | AE77: -1385.58
A78: 67 | B78: =IF(A78>$D$4,"",IF(AND($B$4="Mensuelles",$C$4="Constantes"),"",IF(AND($C$4="Variables",A78=$D$4,$H$8<>0),"Ajuster dernière échéance pour capital dû 0,00€",IF(AND(F78<=F77,$B$4<>"Mensuelles"),"Saisir une date d'échéance valide",IF(AND(A78=$D$4,$H$8<>0),"Ajuster dernière échéance pour capital dû = 0,00€",IF(AND($B$4="Mensuelles",$C$4="Variables",G78=0),"Saisir Montant échéance variable",IF(AND($B$4="Apériodiques",$C$4="Constantes",F78=0),"Saisir date échéance variable",IF(AND($B$4="Apériodiques",$C$4="Variables",F78=0,G78=0),"Saisir date et montant échéance variables",IF(AND($B$4="Apériodiques",$C$4="Variables",F78<>0,G78=0),"Saisir montant échéance variable",IF(AND($B$4="Apériodiques",$C$4="Variables",F78=0,G78<>0),"Saisir date variable échéance","")))))))))) ->  | D78: 67 | E78: =IF(AND(D78>$D$4,$B$4="Mensuelles"),0,IF($B$4="Mensuelles",EDATE(E77,1),IF(F78<>0,F78,IF(D78>$D$4,0,EDATE(E77,1))))) -> 2022-05-20 | G78: 990.37 | H78: 134146.11 | I78: 67 | J78: 1383.58 | K78: 50 | L78: 1333.58 | M78: 281.66 | N78: 1051.92 | O78: 134146.11 | P78: 1385.58 | Q78: 1088.784151 | R78: 105516.2789 | S78: -1385.58 | U78: 66 | V78: =X78+W78 -> 1383.58 | W78: =K78 -> 50 | X78: =Z78+Y78 -> 1333.58 | Y78: 281.66 | Z78: =N78 -> 1051.92 | AA78: =O78 -> 134146.11 | AB78: 1385.58 | AC78: 1091.644433 | AD78: 105711.4582 | AE78: -1385.58
A79: 68 | D79: 68 | E79: 2022-06-20 | G79: =G78+1 -> 991.37 | H79: 133092 | I79: 68 | J79: 1383.58 | K79: 50 | L79: 1333.58 | M79: 279.47 | N79: 1054.11 | O79: 133092 | P79: 1385.58 | Q79: 1084.873887 | R79: 104427.4947 | S79: -1385.58 | U79: 67 | V79: 1383.58 | W79: 50 | X79: 1333.58 | Y79: 279.47 | Z79: 1054.11 | AA79: 133092 | AB79: 1385.58 | AC79: 1087.70784 | AD79: 104619.8137 | AE79: -1385.58
A80: 69 | D80: 69 | E80: 2022-07-20 | G80: 992.37 | H80: 132035.7 | I80: 69 | J80: 1383.58 | K80: 50 | L80: 1333.58 | M80: 277.28 | N80: 1056.3 | O80: 132035.7 | P80: 1385.58 | Q80: 1080.977667 | R80: 103342.6208 | S80: -1385.58 | U80: 68 | V80: 1383.58 | W80: 50 | X80: 1333.58 | Y80: 277.28 | Z80: 1056.3 | AA80: 132035.7 | AB80: 1385.58 | AC80: 1083.785443 | AD80: 103532.1059 | AE80: -1385.58
A81: 70 | D81: 70 | E81: 2022-08-20 | G81: 993.37 | H81: 130977.19 | I81: 70 | J81: 1383.58 | K81: 50 | L81: 1333.58 | M81: 275.07 | N81: 1058.51 | O81: 130977.19 | P81: 1385.58 | Q81: 1077.095439 | R81: 102261.6432 | S81: -1385.58 | U81: 69 | V81: 1383.58 | W81: 50 | X81: 1333.58 | Y81: 275.07 | Z81: 1058.51 | AA81: 130977.19 | AB81: 1385.58 | AC81: 1079.87719 | AD81: 102448.3204 | AE81: -1385.58
A82: 71 | D82: 71 | E82: 2022-09-20 | G82: 994.37 | H82: 129916.48 | I82: 71 | J82: 1383.58 | K82: 50 | L82: 1333.58 | M82: 272.87 | N82: 1060.71 | O82: 129916.48 | P82: 1385.58 | Q82: 1073.227154 | R82: 101184.5477 | S82: -1385.58 | U82: 70 | V82: 1383.58 | W82: 50 | X82: 1333.58 | Y82: 272.87 | Z82: 1060.71 | AA82: 129916.48 | AB82: 1385.58 | AC82: 1075.983031 | AD82: 101368.4433 | AE82: -1385.58
A83: 72 | D83: 72 | E83: 2022-10-20 | G83: 995.37 | H83: 128853.56 | I83: 72 | J83: 1383.58 | K83: 50 | L83: 1333.58 | M83: 270.66 | N83: 1062.92 | O83: 128853.56 | P83: 1385.58 | Q83: 1069.372761 | R83: 100111.3206 | S83: -1385.58 | U83: 71 | V83: 1383.58 | W83: 50 | X83: 1333.58 | Y83: 270.66 | Z83: 1062.92 | AA83: 128853.56 | AB83: 1385.58 | AC83: 1072.102915 | AD83: 100292.4602 | AE83: -1385.58
A84: 73 | D84: 73 | E84: 2022-11-20 | G84: 996.37 | H84: 127788.42 | I84: 73 | J84: 1383.58 | K84: 50 | L84: 1333.58 | M84: 268.44 | N84: 1065.14 | O84: 127788.42 | P84: 1985.58 | Q84: 1526.941388 | R84: 99041.94781 | S84: -1985.58 | U84: 72 | V84: 1383.58 | W84: 50 | X84: 1333.58 | Y84: 268.44 | Z84: 1065.14 | AA84: 127788.42 | AB84: 1985.58 | AC84: 1530.817136 | AD84: 99220.35731 | AE84: -1985.58
A85: 74 | D85: 74 | E85: 2022-12-20 | G85: 997.37 | H85: 126721.07 | I85: 74 | J85: 1383.58 | K85: 50 | L85: 1333.58 | M85: 266.23 | N85: 1067.35 | O85: 126721.07 | P85: 1385.58 | Q85: 1061.705455 | R85: 97515.00643 | S85: -1385.58 | U85: 73 | V85: 1383.58 | W85: 50 | X85: 1333.58 | Y85: 266.23 | Z85: 1067.35 | AA85: 126721.07 | AB85: 1385.58 | AC85: 1064.384609 | AD85: 97689.54017 | AE85: -1385.58
A86: 75 | D86: 75 | E86: 2023-01-20 | G86: 998.37 | H86: 125651.49 | I86: 75 | J86: 1383.58 | K86: 50 | L86: 1333.58 | M86: 264 | N86: 1069.58 | O86: 125651.49 | P86: 1385.58 | Q86: 1057.892441 | R86: 96453.30097 | S86: -1385.58 | U86: 74 | V86: 1383.58 | W86: 50 | X86: 1333.58 | Y86: 264 | Z86: 1069.58 | AA86: 125651.49 | AB86: 1385.58 | AC86: 1060.546318 | AD86: 96625.15556 | AE86: -1385.58
A87: 76 | D87: 76 | E87: 2023-02-20 | G87: 999.37 | H87: 124579.68 | I87: 76 | J87: 1383.58 | K87: 50 | L87: 1333.58 | M87: 261.77 | N87: 1071.81 | O87: 124579.68 | P87: 1385.58 | Q87: 1054.093122 | R87: 95395.40853 | S87: -1385.58 | U87: 75 | V87: 1383.58 | W87: 50 | X87: 1333.58 | Y87: 261.77 | Z87: 1071.81 | AA87: 124579.68 | AB87: 1385.58 | AC87: 1056.721868 | AD87: 95564.60924 | AE87: -1385.58
A88: 77 | D88: 77 | E88: 2023-03-20 | G88: 1000.37 | H88: 123505.64 | I88: 77 | J88: 1383.58 | K88: 50 | L88: 1333.58 | M88: 259.54 | N88: 1074.04 | O88: 123505.64 | P88: 1385.58 | Q88: 1050.307447 | R88: 94341.31541 | S88: -1385.58 | U88: 76 | V88: 1383.58 | W88: 50 | X88: 1333.58 | Y88: 259.54 | Z88: 1074.04 | AA88: 123505.64 | AB88: 1385.58 | AC88: 1052.91121 | AD88: 94507.88738 | AE88: -1385.58
A89: 78 | D89: 78 | E89: 2023-04-20 | G89: 1001.37 | H89: 122429.36 | I89: 78 | J89: 1383.58 | K89: 50 | L89: 1333.58 | M89: 257.3 | N89: 1076.28 | O89: 122429.36 | P89: 1385.58 | Q89: 1046.535369 | R89: 93291.00796 | S89: -1385.58 | U89: 77 | V89: 1383.58 | W89: 50 | X89: 1333.58 | Y89: 257.3 | Z89: 1076.28 | AA89: 122429.36 | AB89: 1385.58 | AC89: 1049.114293 | AD89: 93454.97617 | AE89: -1385.58
A90: 79 | D90: 79 | E90: 2023-05-20 | G90: 1002.37 | H90: 121350.84 | I90: 79 | J90: 1383.58 | K90: 50 | L90: 1333.58 | M90: 255.06 | N90: 1078.52 | O90: 121350.84 | P90: 1385.58 | Q90: 1042.776837 | R90: 92244.47259 | S90: -1385.58 | U90: 78 | V90: 1383.58 | W90: 50 | X90: 1333.58 | Y90: 255.06 | Z90: 1078.52 | AA90: 121350.84 | AB90: 1385.58 | AC90: 1045.331069 | AD90: 92405.86187 | AE90: -1385.58
A91: 80 | D91: 80 | E91: 2023-06-20 | G91: 1003.37 | H91: 120270.07 | I91: 80 | J91: 1383.58 | K91: 50 | L91: 1333.58 | M91: 252.81 | N91: 1080.77 | O91: 120270.07 | P91: 1385.58 | Q91: 1039.031804 | R91: 91201.69575 | S91: -1385.58 | U91: 79 | V91: 1383.58 | W91: 50 | X91: 1333.58 | Y91: 252.81 | Z91: 1080.77 | AA91: 120270.07 | AB91: 1385.58 | AC91: 1041.561487 | AD91: 91360.5308 | AE91: -1385.58
A92: 81 | D92: 81 | E92: 2023-07-20 | G92: 1004.37 | H92: 119187.05 | I92: 81 | J92: 1383.58 | K92: 50 | L92: 1333.58 | M92: 250.56 | N92: 1083.02 | O92: 119187.05 | P92: 1385.58 | Q92: 1035.300221 | R92: 90162.66395 | S92: -1385.58 | U92: 80 | V92: 1383.58 | W92: 50 | X92: 1333.58 | Y92: 250.56 | Z92: 1083.02 | AA92: 119187.05 | AB92: 1385.58 | AC92: 1037.805499 | AD92: 90318.96932 | AE92: -1385.58
A93: 82 | D93: 82 | E93: 2023-08-20 | G93: 1005.37 | H93: 118101.78 | I93: 82 | J93: 1383.58 | K93: 50 | L93: 1333.58 | M93: 248.31 | N93: 1085.27 | O93: 118101.78 | P93: 1385.58 | Q93: 1031.582039 | R93: 89127.36373 | S93: -1385.58 | U93: 81 | V93: 1383.58 | W93: 50 | X93: 1333.58 | Y93: 248.31 | Z93: 1085.27 | AA93: 118101.78 | AB93: 1385.58 | AC93: 1034.063055 | AD93: 89281.16382 | AE93: -1385.58
A94: 83 | D94: 83 | E94: 2023-09-20 | G94: 1006.37 | H94: 117014.25 | I94: 83 | J94: 1383.58 | K94: 50 | L94: 1333.58 | M94: 246.05 | N94: 1087.53 | O94: 117014.25 | P94: 1385.58 | Q94: 1027.877211 | R94: 88095.78169 | S94: -1385.58 | U94: 82 | V94: 1383.58 | W94: 50 | X94: 1333.58 | Y94: 246.05 | Z94: 1087.53 | AA94: 117014.25 | AB94: 1385.58 | AC94: 1030.334107 | AD94: 88247.10076 | AE94: -1385.58
A95: 84 | D95: 84 | E95: 2023-10-20 | G95: 1007.37 | H95: 115924.45 | I95: 84 | J95: 1383.58 | K95: 50 | L95: 1333.58 | M95: 243.78 | N95: 1089.8 | O95: 115924.45 | P95: 1385.58 | Q95: 1024.185689 | R95: 87067.90448 | S95: -1385.58 | U95: 83 | V95: 1383.58 | W95: 50 | X95: 1333.58 | Y95: 243.78 | Z95: 1089.8 | AA95: 115924.45 | AB95: 1385.58 | AC95: 1026.618606 | AD95: 87216.76666 | AE95: -1385.58
A96: 85 | D96: 85 | E96: 2023-11-20 | G96: 1008.37 | H96: 114832.38 | I96: 85 | J96: 1383.58 | K96: 50 | L96: 1333.58 | M96: 241.51 | N96: 1092.07 | O96: 114832.38 | P96: 1985.58 | Q96: 1462.419442 | R96: 86043.71879 | S96: -1985.58 | U96: 84 | V96: 1383.58 | W96: 50 | X96: 1333.58 | Y96: 241.51 | Z96: 1092.07 | AA96: 114832.38 | AB96: 1985.58 | AC96: 1465.87173 | AD96: 86190.14805 | AE96: -1985.58
A97: 86 | D97: 86 | E97: 2023-12-20 | G97: 1009.37 | H97: 113738.03 | I97: 86 | J97: 1383.58 | K97: 50 | L97: 1333.58 | M97: 239.23 | N97: 1094.35 | O97: 113738.03 | P97: 1385.58 | Q97: 1016.842369 | R97: 84581.29935 | S97: -1385.58 | U97: 85 | V97: 1383.58 | W97: 50 | X97: 1333.58 | Y97: 239.23 | Z97: 1094.35 | AA97: 113738.03 | AB97: 1385.58 | AC97: 1019.227751 | AD97: 84724.27632 | AE97: -1385.58
A98: 87 | D98: 87 | E98: 2024-01-20 | G98: 1010.37 | H98: 112641.4 | I98: 87 | J98: 1383.58 | K98: 50 | L98: 1333.58 | M98: 236.95 | N98: 1096.63 | O98: 112641.4 | P98: 1385.58 | Q98: 1013.190477 | R98: 83564.45698 | S98: -1385.58 | U98: 86 | V98: 1383.58 | W98: 50 | X98: 1333.58 | Y98: 236.95 | Z98: 1096.63 | AA98: 112641.4 | AB98: 1385.58 | AC98: 1015.552301 | AD98: 83705.04857 | AE98: -1385.58
A99: 88 | D99: 88 | E99: 2024-02-20 | G99: 1011.37 | H99: 111542.49 | I99: 88 | J99: 1383.58 | K99: 50 | L99: 1333.58 | M99: 234.67 | N99: 1098.91 | O99: 111542.49 | P99: 1385.58 | Q99: 1009.551701 | R99: 82551.2665 | S99: -1385.58 | U99: 87 | V99: 1383.58 | W99: 50 | X99: 1333.58 | Y99: 234.67 | Z99: 1098.91 | AA99: 111542.49 | AB99: 1385.58 | AC99: 1011.890105 | AD99: 82689.49627 | AE99: -1385.58
A100: 89 | D100: 89 | E100: 2024-03-20 | G100: 1012.37 | H100: 110441.29 | I100: 89 | J100: 1383.58 | K100: 50 | L100: 1333.58 | M100: 232.38 | N100: 1101.2 | O100: 110441.29 | P100: 1385.58 | Q100: 1005.925993 | R100: 81541.7148 | S100: -1385.58 | U100: 88 | V100: 1383.58 | W100: 50 | X100: 1333.58 | Y100: 232.38 | Z100: 1101.2 | AA100: 110441.29 | AB100: 1385.58 | AC100: 1008.241115 | AD100: 81677.60616 | AE100: -1385.58
A101: 90 | D101: 90 | E101: 2024-04-20 | G101: 1013.37 | H101: 109337.8 | I101: 90 | J101: 1383.58 | K101: 50 | L101: 1333.58 | M101: 230.09 | N101: 1103.49 | O101: 109337.8 | P101: 1385.58 | Q101: 1002.313306 | R101: 80535.78881 | S101: -1385.58 | U101: 89 | V101: 1383.58 | W101: 50 | X101: 1333.58 | Y101: 230.09 | Z101: 1103.49 | AA101: 109337.8 | AB101: 1385.58 | AC101: 1004.605284 | AD101: 80669.36505 | AE101: -1385.58
A102: 91 | D102: 91 | E102: 2024-05-20 | G102: 1014.37 | H102: 108232.01 | I102: 91 | J102: 1383.58 | K102: 50 | L102: 1333.58 | M102: 227.79 | N102: 1105.79 | O102: 108232.01 | P102: 1385.58 | Q102: 998.7135935 | R102: 79533.4755 | S102: -1385.58 | U102: 90 | V102: 1383.58 | W102: 50 | X102: 1333.58 | Y102: 227.79 | Z102: 1105.79 | AA102: 108232.01 | AB102: 1385.58 | AC102: 1000.982564 | AD102: 79664.75976 | AE102: -1385.58
A103: 92 | D103: 92 | E103: 2024-06-20 | G103: 1015.37 | H103: 107123.91 | I103: 92 | J103: 1383.58 | K103: 50 | L103: 1333.58 | M103: 225.48 | N103: 1108.1 | O103: 107123.91 | P103: 1385.58 | Q103: 995.1268093 | R103: 78534.76191 | S103: -1385.58 | U103: 91 | V103: 1383.58 | W103: 50 | X103: 1333.58 | Y103: 225.48 | Z103: 1108.1 | AA103: 107123.91 | AB103: 1385.58 | AC103: 997.3729081 | AD103: 78663.7772 | AE103: -1385.58
A104: 93 | D104: 93 | E104: 2024-07-20 | G104: 1016.37 | H104: 106013.5 | I104: 93 | J104: 1383.58 | K104: 50 | L104: 1333.58 | M104: 223.17 | N104: 1110.41 | O104: 106013.5 | P104: 1385.58 | Q104: 991.5529067 | R104: 77539.6351 | S104: -1385.58 | U104: 92 | V104: 1383.58 | W104: 50 | X104: 1333.58 | Y104: 223.17 | Z104: 1110.41 | AA104: 106013.5 | AB104: 1385.58 | AC104: 993.7762689 | AD104: 77666.40429 | AE104: -1385.58
A105: 94 | D105: 94 | E105: 2024-08-20 | G105: 1017.37 | H105: 104900.78 | I105: 94 | J105: 1383.58 | K105: 50 | L105: 1333.58 | M105: 220.86 | N105: 1112.72 | O105: 104900.78 | P105: 1385.58 | Q105: 987.9918394 | R105: 76548.08219 | S105: -1385.58 | U105: 93 | V105: 1383.58 | W105: 50 | X105: 1333.58 | Y105: 220.86 | Z105: 1112.72 | AA105: 104900.78 | AB105: 1385.58 | AC105: 990.1925996 | AD105: 76672.62802 | AE105: -1385.58
A106: 95 | D106: 95 | E106: 2024-09-20 | G106: 1018.37 | H106: 103785.74 | I106: 95 | J106: 1383.58 | K106: 50 | L106: 1333.58 | M106: 218.54 | N106: 1115.04 | O106: 103785.74 | P106: 1385.58 | Q106: 984.4435614 | R106: 75560.09035 | S106: -1385.58 | U106: 94 | V106: 1383.58 | W106: 50 | X106: 1333.58 | Y106: 218.54 | Z106: 1115.04 | AA106: 103785.74 | AB106: 1385.58 | AC106: 986.6218534 | AD106: 75682.43542 | AE106: -1385.58
A107: 96 | D107: 96 | E107: 2024-10-20 | G107: 1019.37 | H107: 102668.38 | I107: 96 | J107: 1383.58 | K107: 50 | L107: 1333.58 | M107: 216.22 | N107: 1117.36 | O107: 102668.38 | P107: 1385.58 | Q107: 980.9080266 | R107: 74575.64679 | S107: -1385.58 | U107: 95 | V107: 1383.58 | W107: 50 | X107: 1333.58 | Y107: 216.22 | Z107: 1117.36 | AA107: 102668.38 | AB107: 1385.58 | AC107: 983.0639837 | AD107: 74695.81357 | AE107: -1385.58
A108: 97 | D108: 97 | E108: 2024-11-20 | G108: 1020.37 | H108: 101548.69 | I108: 97 | J108: 1383.58 | K108: 50 | L108: 1333.58 | M108: 213.89 | N108: 1119.69 | O108: 101548.69 | P108: 1985.58 | Q108: 1400.623915 | R108: 73594.73876 | S108: -1985.58 | U108: 96 | V108: 1383.58 | W108: 50 | X108: 1333.58 | Y108: 213.89 | Z108: 1119.69 | AA108: 101548.69 | AB108: =IF($C$10<>0,V108,IF(Y478>$D$4,0,(V108+W478+X478))) -> 1985.58 | AC108: 1403.681653 | AD108: 73712.74959 | AE108: -1985.58
A109: 98 | D109: 98 | E109: 2024-12-20 | G109: 1021.37 | H109: 100426.67 | I109: 98 | J109: 1383.58 | K109: 50 | L109: 1333.58 | M109: 211.56 | N109: 1122.02 | O109: 100426.67 | P109: 1385.58 | Q109: 973.8750041 | R109: 72194.11485 | S109: -1385.58 | U109: 97 | V109: 1383.58 | W109: 50 | X109: 1333.58 | Y109: 211.56 | Z109: 1122.02 | AA109: 100426.67 | AB109: 1385.58 | AC109: 975.9866884 | AD109: 72309.06793 | AE109: -1385.58
A110: 99 | D110: 99 | E110: 2025-01-20 | G110: 1022.37 | H110: 99302.31 | I110: 99 | J110: 1383.58 | K110: 50 | L110: 1333.58 | M110: 209.22 | N110: 1124.36 | O110: 99302.31 | P110: 1385.58 | Q110: 970.3774253 | R110: 71220.23985 | S110: -1385.58 | U110: 98 | V110: 1383.58 | W110: 50 | X110: 1333.58 | Y110: 209.22 | Z110: 1124.36 | AA110: 99302.31 | AB110: 1385.58 | AC110: 972.4671703 | AD110: 71333.08124 | AE110: -1385.58
A111: 100 | D111: 100 | E111: 2025-02-20 | G111: 1023.37 | H111: 98175.61 | I111: 100 | J111: 1383.58 | K111: 50 | L111: 1333.58 | M111: 206.88 | N111: 1126.7 | O111: 98175.61 | P111: 1385.58 | Q111: 966.8924078 | R111: 70249.86242 | S111: -1385.58 | U111: 99 | V111: 1383.58 | W111: 50 | X111: 1333.58 | Y111: 206.88 | Z111: 1126.7 | AA111: 98175.61 | AB111: 1385.58 | AC111: 968.960344 | AD111: 70360.61407 | AE111: -1385.58
A112: 101 | D112: 101 | E112: 2025-03-20 | G112: 1024.37 | H112: 97046.56 | I112: 101 | J112: 1383.58 | K112: 50 | L112: 1333.58 | M112: 204.53 | N112: 1129.05 | O112: 97046.56 | P112: 1385.58 | Q112: 963.4199063 | R112: 69282.97001 | S112: -1385.58 | U112: 100 | V112: 1383.58 | W112: 50 | X112: 1333.58 | Y112: 204.53 | Z112: 1129.05 | AA112: 97046.56 | AB112: 1385.58 | AC112: 965.4661637 | AD112: 69391.65373 | AE112: -1385.58
A113: 102 | D113: 102 | E113: 2025-04-20 | G113: 1025.37 | H113: 95915.16 | I113: 102 | J113: 1383.58 | K113: 50 | L113: 1333.58 | M113: 202.18 | N113: 1131.4 | O113: 95915.16 | P113: 1385.58 | Q113: 959.959876 | R113: 68319.55011 | S113: -1385.58 | U113: 101 | V113: 1383.58 | W113: 50 | X113: 1333.58 | Y113: 202.18 | Z113: 1131.4 | AA113: 95915.16 | AB113: 1385.58 | AC113: 961.9845839 | AD113: 68426.18757 | AE113: -1385.58
A114: 103 | D114: 103 | E114: 2025-05-20 | G114: 1026.37 | H114: 94781.4 | I114: 103 | J114: 1383.58 | K114: 50 | L114: 1333.58 | M114: 199.82 | N114: 1133.76 | O114: 94781.4 | P114: 1385.58 | Q114: 956.5122721 | R114: 67359.59023 | S114: -1385.58 | U114: 102 | V114: 1383.58 | W114: 50 | X114: 1333.58 | Y114: 199.82 | Z114: 1133.76 | AA114: 94781.4 | AB114: 1385.58 | AC114: 958.515559 | AD114: 67464.20298 | AE114: -1385.58
A115: 104 | D115: 104 | E115: 2025-06-20 | G115: 1027.37 | H115: 93645.28 | I115: 104 | J115: 1383.58 | K115: 50 | L115: 1333.58 | M115: 197.46 | N115: 1136.12 | O115: 93645.28 | P115: 1385.58 | Q115: 953.0770499 | R115: 66403.07796 | S115: -1385.58 | U115: 103 | V115: 1383.58 | W115: 50 | X115: 1333.58 | Y115: 197.46 | Z115: 1136.12 | AA115: 93645.28 | AB115: 1385.58 | AC115: 955.0590438 | AD115: 66505.68742 | AE115: -1385.58
A116: 105 | D116: 105 | E116: 2025-07-20 | G116: 1028.37 | H116: 92506.79 | I116: 105 | J116: 1383.58 | K116: 50 | L116: 1333.58 | M116: 195.09 | N116: 1138.49 | O116: 92506.79 | P116: 1385.58 | Q116: 949.6541649 | R116: 65450.00091 | S116: -1385.58 | U116: 104 | V116: 1383.58 | W116: 50 | X116: 1333.58 | Y116: 195.09 | Z116: 1138.49 | AA116: 92506.79 | AB116: 1385.58 | AC116: 951.6149931 | AD116: 65550.62838 | AE116: -1385.58
A117: 106 | D117: 106 | E117: 2025-08-20 | G117: 1029.37 | H117: 91365.93 | I117: 106 | J117: 1383.58 | K117: 50 | L117: 1333.58 | M117: 192.72 | N117: 1140.86 | O117: 91365.93 | P117: 1385.58 | Q117: 946.243573 | R117: 64500.34674 | S117: -1385.58 | U117: 105 | V117: 1383.58 | W117: 50 | X117: 1333.58 | Y117: 192.72 | Z117: 1140.86 | AA117: 91365.93 | AB117: 1385.58 | AC117: 948.1833622 | AD117: 64599.01339 | AE117: -1385.58
A118: 107 | D118: 107 | E118: 2025-09-20 | G118: 1030.37 | H118: 90222.7 | I118: 107 | J118: 1383.58 | K118: 50 | L118: 1333.58 | M118: 190.35 | N118: 1143.23 | O118: 90222.7 | P118: 1385.58 | Q118: 942.8452298 | R118: 63554.10317 | S118: -1385.58 | U118: 106 | V118: 1383.58 | W118: 50 | X118: 1333.58 | Y118: 190.35 | Z118: 1143.23 | AA118: 90222.7 | AB118: 1385.58 | AC118: 944.764106 | AD118: 63650.83002 | AE118: -1385.58
A119: 108 | D119: 108 | E119: 2025-10-20 | G119: 1031.37 | H119: 89077.08 | I119: 108 | J119: 1383.58 | K119: 50 | L119: 1333.58 | M119: 187.96 | N119: 1145.62 | O119: 89077.08 | P119: 1385.58 | Q119: 939.4590915 | R119: 62611.25794 | S119: -1385.58 | U119: 107 | V119: 1383.58 | W119: 50 | X119: 1333.58 | Y119: 187.96 | Z119: 1145.62 | AA119: 89077.08 | AB119: 1385.58 | AC119: 941.3571801 | AD119: 62706.06592 | AE119: -1385.58
A120: 109 | D120: 109 | E120: 2025-11-20 | G120: 1032.37 | H120: 87929.08 | I120: 109 | J120: 1383.58 | K120: 50 | L120: 1333.58 | M120: 185.58 | N120: 1148 | O120: 87929.08 | P120: 1985.58 | Q120: 1341.4396 | R120: 61671.79885 | S120: -1985.58 | U120: 108 | V120: 1383.58 | W120: 50 | X120: 1333.58 | Y120: 185.58 | Z120: 1148 | AA120: 87929.08 | AB120: 1985.58 | AC120: 1344.130011 | AD120: 61764.70874 | AE120: -1985.58
A121: 110 | D121: 110 | E121: 2025-12-20 | G121: 1033.37 | H121: 86778.69 | I121: 110 | J121: 1383.58 | K121: 50 | L121: 1333.58 | M121: 183.19 | N121: 1150.39 | O121: 86778.69 | P121: 1385.58 | Q121: 932.7232542 | R121: 60330.35925 | S121: -1385.58 | U121: 109 | V121: 1383.58 | W121: 50 | X121: 1333.58 | Y121: 183.19 | Z121: 1150.39 | AA121: 86778.69 | AB121: 1385.58 | AC121: 934.5801412 | AD121: 60420.57873 | AE121: -1385.58
A122: 111 | D122: 111 | E122: 2026-01-20 | G122: 1034.37 | H122: 85625.9 | I122: 111 | J122: 1383.58 | K122: 50 | L122: 1333.58 | M122: 180.79 | N122: 1152.79 | O122: 85625.9 | P122: 1385.58 | Q122: 929.3734679 | R122: 59397.63599 | S122: -1385.58 | U122: 110 | V122: 1383.58 | W122: 50 | X122: 1333.58 | Y122: 180.79 | Z122: 1152.79 | AA122: 85625.9 | AB122: 1385.58 | AC122: 931.2099399 | AD122: 59485.99859 | AE122: -1385.58
A123: 112 | D123: 112 | E123: 2026-02-20 | G123: 1035.37 | H123: 84470.71 | I123: 112 | J123: 1383.58 | K123: 50 | L123: 1333.58 | M123: 178.39 | N123: 1155.19 | O123: 84470.71 | P123: 1385.58 | Q123: 926.0357122 | R123: 58468.26253 | S123: -1385.58 | U123: 111 | V123: 1383.58 | W123: 50 | X123: 1333.58 | Y123: 178.39 | Z123: 1155.19 | AA123: 84470.71 | AB123: 1385.58 | AC123: 927.8518918 | AD123: 58554.78865 | AE123: -1385.58
A124: 113 | D124: 113 | E124: 2026-03-20 | G124: 1036.37 | H124: 83313.11 | I124: 113 | J124: 1383.58 | K124: 50 | L124: 1333.58 | M124: 175.98 | N124: 1157.6 | O124: 83313.11 | P124: 1385.58 | Q124: 922.7099436 | R124: 57542.22681 | S124: -1385.58 | U124: 112 | V124: 1383.58 | W124: 50 | X124: 1333.58 | Y124: 175.98 | Z124: 1157.6 | AA124: 83313.11 | AB124: 1385.58 | AC124: 924.5059532 | AD124: 57626.93675 | AE124: -1385.58
A125: 114 | D125: 114 | E125: 2026-04-20 | G125: 1037.37 | H125: 82153.1 | I125: 114 | J125: 1383.58 | K125: 50 | L125: 1333.58 | M125: 173.57 | N125: 1160.01 | O125: 82153.1 | P125: 1385.58 | Q125: 919.3961192 | R125: 56619.51687 | S125: -1385.58 | U125: 113 | V125: 1383.58 | W125: 50 | X125: 1333.58 | Y125: 173.57 | Z125: 1160.01 | AA125: 82153.1 | AB125: 1385.58 | AC125: 921.1720805 | AD125: 56702.4308 | AE125: -1385.58
A126: 115 | D126: 115 | E126: 2026-05-20 | G126: 1038.37 | H126: 80990.67 | I126: 115 | J126: 1383.58 | K126: 50 | L126: 1333.58 | M126: 171.15 | N126: 1162.43 | O126: 80990.67 | P126: 1385.58 | Q126: 916.0941961 | R126: 55700.12075 | S126: -1385.58 | U126: 114 | V126: 1383.58 | W126: 50 | X126: 1333.58 | Y126: 171.15 | Z126: 1162.43 | AA126: 80990.67 | AB126: 1385.58 | AC126: 917.8502301 | AD126: 55781.25872 | AE126: -1385.58
A127: 116 | D127: 116 | E127: 2026-06-20 | G127: 1039.37 | H127: 79825.82 | I127: 116 | J127: 1383.58 | K127: 50 | L127: 1333.58 | M127: 168.73 | N127: 1164.85 | O127: 79825.82 | P127: 1385.58 | Q127: 912.8041316 | R127: 54784.02656 | S127: -1385.58 | U127: 115 | V127: 1383.58 | W127: 50 | X127: 1333.58 | Y127: 168.73 | Z127: 1164.85 | AA127: 79825.82 | AB127: 1385.58 | AC127: 914.5403586 | AD127: 54863.40849 | AE127: -1385.58
A128: 117 | D128: 117 | E128: 2026-07-20 | G128: 1040.37 | H128: 78658.54 | I128: 117 | J128: 1383.58 | K128: 50 | L128: 1333.58 | M128: 166.3 | N128: 1167.28 | O128: 78658.54 | P128: 1385.58 | Q128: 909.525883 | R128: 53871.22242 | S128: -1385.58 | U128: 116 | V128: 1383.58 | W128: 50 | X128: 1333.58 | Y128: 166.3 | Z128: 1167.28 | AA128: 78658.54 | AB128: 1385.58 | AC128: 911.242423 | AD128: 53948.86813 | AE128: -1385.58
A129: 118 | D129: 118 | E129: 2026-08-20 | G129: 1041.37 | H129: 77488.83 | I129: 118 | J129: 1383.58 | K129: 50 | L129: 1333.58 | M129: 163.87 | N129: 1169.71 | O129: 77488.83 | P129: 1385.58 | Q129: 906.2594079 | R129: 52961.69654 | S129: -1385.58 | U129: 117 | V129: 1383.58 | W129: 50 | X129: 1333.58 | Y129: 163.87 | Z129: 1169.71 | AA129: 77488.83 | AB129: 1385.58 | AC129: 907.95638 | AD129: 53037.62571 | AE129: -1385.58
A130: 119 | D130: 119 | E130: 2026-09-20 | G130: 1042.37 | H130: 76316.69 | I130: 119 | J130: 1383.58 | K130: 50 | L130: 1333.58 | M130: 161.44 | N130: 1172.14 | O130: 76316.69 | P130: 1385.58 | Q130: 903.0046641 | R130: 52055.43713 | S130: -1385.58 | U130: 118 | V130: 1383.58 | W130: 50 | X130: 1333.58 | Y130: 161.44 | Z130: 1172.14 | AA130: 76316.69 | AB130: 1385.58 | AC130: 904.6821869 | AD130: 52129.66933 | AE130: -1385.58
A131: 120 | D131: 120 | E131: 2026-10-20 | G131: 1043.37 | H131: 75142.1 | I131: 120 | J131: 1383.58 | K131: 50 | L131: 1333.58 | M131: 158.99 | N131: 1174.59 | O131: 75142.1 | P131: 1385.58 | Q131: 899.7616093 | R131: 51152.43247 | S131: -1385.58 | U131: 119 | V131: 1383.58 | W131: 50 | X131: 1333.58 | Y131: 158.99 | Z131: 1174.59 | AA131: 75142.1 | AB131: 1385.58 | AC131: 901.4198009 | AD131: 51224.98714 | AE131: -1385.58
A132: 121 | D132: 121 | E132: 2026-11-20 | G132: 1044.37 | H132: 73965.07 | I132: 121 | J132: 1383.58 | K132: 50 | L132: 1333.58 | M132: 156.55 | N132: 1177.03 | O132: 73965.07 | P132: 1985.58 | Q132: 1284.756158 | R132: 50252.67086 | S132: -1985.58 | U132: 120 | V132: 1383.58 | W132: 50 | X132: 1333.58 | Y132: 156.55 | Z132: 1177.03 | AA132: 73965.07 | AB132: 1985.58 | AC132: 1287.104865 | AD132: 50323.56734 | AE132: -1985.58
A133: 122 | D133: 122 | E133: 2026-12-20 | G133: 1045.37 | H133: 72785.58 | I133: 122 | J133: 1383.58 | K133: 50 | L133: 1333.58 | M133: 154.09 | N133: 1179.49 | O133: 72785.58 | P133: 1385.58 | Q133: 893.3103993 | R133: 48967.9147 | S133: -1385.58 | U133: 121 | V133: 1383.58 | W133: 50 | X133: 1333.58 | Y133: 154.09 | Z133: 1179.49 | AA133: 72785.58 | AB133: 1385.58 | AC133: 894.9302801 | AD133: 49036.46248 | AE133: -1385.58
A134: 123 | D134: 123 | E134: 2027-01-20 | G134: 1046.37 | H134: 71603.64 | I134: 123 | J134: 1383.58 | K134: 50 | L134: 1333.58 | M134: 151.64 | N134: 1181.94 | O134: 71603.64 | P134: 1385.58 | Q134: 890.1021606 | R134: 48074.6043 | S134: -1385.58 | U134: 122 | V134: 1383.58 | W134: 50 | X134: 1333.58 | Y134: 151.64 | Z134: 1181.94 | AA134: 71603.64 | AB134: 1385.58 | AC134: 891.7030606 | AD134: 48141.5322 | AE134: -1385.58
A135: 124 | D135: 124 | E135: 2027-02-20 | G135: 1047.37 | H135: 70419.23 | I135: 124 | J135: 1383.58 | K135: 50 | L135: 1333.58 | M135: 149.17 | N135: 1184.41 | O135: 70419.23 | P135: 1385.58 | Q135: 886.905444 | R135: 47184.50214 | S135: -1385.58 | U135: 123 | V135: 1383.58 | W135: 50 | X135: 1333.58 | Y135: 149.17 | Z135: 1184.41 | AA135: 70419.23 | AB135: 1385.58 | AC135: 888.4874788 | AD135: 47249.82913 | AE135: -1385.58
A136: 125 | D136: 125 | E136: 2027-03-20 | G136: 1048.37 | H136: 69232.36 | I136: 125 | J136: 1383.58 | K136: 50 | L136: 1333.58 | M136: 146.71 | N136: 1186.87 | O136: 69232.36 | P136: 1385.58 | Q136: 883.720208 | R136: 46297.5967 | S136: -1385.58 | U136: 124 | V136: 1383.58 | W136: 50 | X136: 1333.58 | Y136: 146.71 | Z136: 1186.87 | AA136: 69232.36 | AB136: 1385.58 | AC136: 885.2834927 | AD136: 46361.34166 | AE136: -1385.58
A137: 126 | D137: 126 | E137: 2027-04-20 | G137: 1049.37 | H137: 68043.01 | I137: 126 | J137: 1383.58 | K137: 50 | L137: 1333.58 | M137: 144.23 | N137: 1189.35 | O137: 68043.01 | P137: 1385.58 | Q137: 880.5464115 | R137: 45413.87649 | S137: -1385.58 | U137: 125 | V137: 1383.58 | W137: 50 | X137: 1333.58 | Y137: 144.23 | Z137: 1189.35 | AA137: 68043.01 | AB137: 1385.58 | AC137: 882.0910606 | AD137: 45476.05816 | AE137: -1385.58
A138: 127 | D138: 127 | E138: 2027-05-20 | G138: 1050.37 | H138: 66851.19 | I138: 127 | J138: 1383.58 | K138: 50 | L138: 1333.58 | M138: 141.76 | N138: 1191.82 | O138: 66851.19 | P138: 1385.58 | Q138: 877.3840135 | R138: 44533.33008 | S138: -1385.58 | U138: 126 | V138: 1383.58 | W138: 50 | X138: 1333.58 | Y138: 141.76 | Z138: 1191.82 | AA138: 66851.19 | AB138: 1385.58 | AC138: 878.9101408 | AD138: 44593.9671 | AE138: -1385.58
A139: 128 | D139: 128 | E139: 2027-06-20 | G139: 1051.37 | H139: 65656.88 | I139: 128 | J139: 1383.58 | K139: 50 | L139: 1333.58 | M139: 139.27 | N139: 1194.31 | O139: 65656.88 | P139: 1385.58 | Q139: 874.2329728 | R139: 43655.94606 | S139: -1385.58 | U139: 127 | V139: 1383.58 | W139: 50 | X139: 1333.58 | Y139: 139.27 | Z139: 1194.31 | AA139: 65656.88 | AB139: 1385.58 | AC139: 875.7406917 | AD139: 43715.05696 | AE139: -1385.58
A140: 129 | D140: 129 | E140: 2027-07-20 | G140: 1052.37 | H140: =AE510 -> 64460.09 | I140: =D140 -> 129 | J140: 1383.58 | K140: 50 | L140: 1333.58 | M140: 136.79 | N140: 1196.79 | O140: 64460.09 | P140: =IF($C$10<>0,J140,IF(Y510>$D$4,0,(J140+W510+X510))) -> 1385.58 | Q140: =IF(Y510>$D$4,0,IF($B$4="Apériodiques",IF($C$10=1,(P140*((1+$Q$10)^(-K510)))*((1+$Q$10)^(-L510/C510)),IF($C$10=2,(P140*((1+$Q$10)^(-I510/12)))*((1+$Q$10)^(-J510/C510)),(P140*((1+$Q$10)^(-G510/52)))*((1+$Q$10)^(-H510/C510)))),P140*((1+$Q$10)^(-Y510/12)))) -> 871.0932488 | R140: 42781.71309 | S140: =-P140 -> -1385.58 | U140: 128 | V140: 1383.58 | W140: 50 | X140: 1333.58 | Y140: 136.79 | Z140: 1196.79 | AA140: 64460.09 | AB140: 1385.58 | AC140: 872.582672 | AD140: 42839.31627 | AE140: =-AB140 -> -1385.58
A141: 130 | D141: 130 | E141: 2027-08-20 | G141: 1053.37 | H141: 63260.8 | I141: 130 | J141: =IF(D141=$D$4,L141+K141,Z511) -> 1383.58 | K141: =AA511 -> 50 | L141: =IF(D141=$D$4,N141+M141,AB511) -> 1333.58 | M141: =AC511 -> 134.29 | N141: =IF(D141=$D$4,O140,AD511) -> 1199.29 | O141: =O140-N141 -> 63260.8 | P141: 1385.58 | Q141: 867.9648009 | R141: =R142+Q141 -> 41910.61984 | S141: -1385.58 | U141: =IF($E$10<>$E$11,I141,I141-1) -> 129 | V141: 1383.58 | W141: 50 | X141: 1333.58 | Y141: =IF(R141=0,0,IF($B$4="Apériodiques",M141,ROUND((AA140*$F$4/12*P511)+(AA140*$F$4/C511*Q511),2))) -> 134.29 | Z141: 1199.29 | AA141: 63260.8 | AB141: =IF($C$10<>0,V141,IF(Y511>$D$4,0,(V141+W511+X511))) -> 1385.58 | AC141: =IF(Y511>$D$4,0,IF($B$4="Apériodiques",IF($C$10=1,(P141*((1+$Q$10)^(-K511)))*((1+$Q$10)^(-L511/C511)),IF($C$10=2,(P141*((1+$Q$10)^(-I511/12)))*((1+$Q$10)^(-J511/C511)),(P141*((1+$Q$10)^(-G511/52)))*((1+$Q$10)^(-H511/C511)))),AB141*((1+$AC$10)^(-U141/12)))) -> 869.4360405 | AD141: =AD142+AC141 -> 41966.7336 | AE141: -1385.58
A142: 131 | B142: =IF(A142>$D$4,"",IF(AND($B$4="Mensuelles",$C$4="Constantes"),"",IF(AND($C$4="Variables",A142=$D$4,$H$8<>0),"Ajuster dernière échéance pour capital dû 0,00€",IF(AND(F142<=F141,$B$4<>"Mensuelles"),"Saisir une date d'échéance valide",IF(AND(A142=$D$4,$H$8<>0),"Ajuster dernière échéance pour capital dû = 0,00€",IF(AND($B$4="Mensuelles",$C$4="Variables",G142=0),"Saisir Montant échéance variable",IF(AND($B$4="Apériodiques",$C$4="Constantes",F142=0),"Saisir date échéance variable",IF(AND($B$4="Apériodiques",$C$4="Variables",F142=0,G142=0),"Saisir date et montant échéance variables",IF(AND($B$4="Apériodiques",$C$4="Variables",F142<>0,G142=0),"Saisir montant échéance variable",IF(AND($B$4="Apériodiques",$C$4="Variables",F142=0,G142<>0),"Saisir date variable échéance","")))))))))) ->  | D142: 131 | E142: =IF(AND(D142>$D$4,$B$4="Mensuelles"),0,IF($B$4="Mensuelles",EDATE(E141,1),IF(F142<>0,F142,IF(D142>$D$4,0,EDATE(E141,1))))) -> 2027-09-20 | G142: 1054.37 | H142: 62059.01 | I142: 131 | J142: 1383.58 | K142: 50 | L142: 1333.58 | M142: 131.79 | N142: 1201.79 | O142: 62059.01 | P142: 1385.58 | Q142: 864.8475885 | R142: 41042.65504 | S142: -1385.58 | U142: 130 | V142: =X142+W142 -> 1383.58 | W142: =K142 -> 50 | X142: =Z142+Y142 -> 1333.58 | Y142: 131.79 | Z142: =N142 -> 1201.79 | AA142: =O142 -> 62059.01 | AB142: 1385.58 | AC142: 866.3007561 | AD142: 41097.29756 | AE142: -1385.58
A143: 132 | D143: 132 | E143: 2027-10-20 | G143: =G142+1 -> 1055.37 | H143: 60854.72 | I143: 132 | J143: 1383.58 | K143: 50 | L143: 1333.58 | M143: 129.29 | N143: 1204.29 | O143: 60854.72 | P143: 1385.58 | Q143: 861.7415712 | R143: 40177.80745 | S143: -1385.58 | U143: 131 | V143: 1383.58 | W143: 50 | X143: 1333.58 | Y143: 129.29 | Z143: 1204.29 | AA143: 60854.72 | AB143: 1385.58 | AC143: 863.1767778 | AD143: 40230.9968 | AE143: -1385.58
A144: 133 | D144: 133 | E144: 2027-11-20 | G144: 1056.37 | H144: 59647.92 | I144: 133 | J144: 1383.58 | K144: 50 | L144: 1333.58 | M144: 126.78 | N144: 1206.8 | O144: 59647.92 | P144: 1985.58 | Q144: 1230.467914 | R144: 39316.06588 | S144: -1985.58 | U144: 132 | V144: 1383.58 | W144: 50 | X144: 1333.58 | Y144: 126.78 | Z144: 1206.8 | AA144: 59647.92 | AB144: 1985.58 | AC144: 1232.49903 | AD144: 39367.82002 | AE144: -1985.58
A145: 134 | D145: 134 | E145: 2027-12-20 | G145: 1057.37 | H145: 58438.61 | I145: 134 | J145: 1383.58 | K145: 50 | L145: 1333.58 | M145: 124.27 | N145: 1209.31 | O145: 58438.61 | P145: 1385.58 | Q145: 855.5629615 | R145: 38085.59797 | S145: -1385.58 | U145: 133 | V145: 1383.58 | W145: 50 | X145: 1333.58 | Y145: 124.27 | Z145: 1209.31 | AA145: 58438.61 | AB145: 1385.58 | AC145: 856.962577 | AD145: 38135.32099 | AE145: -1385.58
A146: 135 | D146: 135 | E146: 2028-01-20 | G146: 1058.37 | H146: 57226.78 | I146: 135 | J146: 1383.58 | K146: 50 | L146: 1333.58 | M146: 121.75 | N146: 1211.83 | O146: 57226.78 | P146: 1385.58 | Q146: 852.4902891 | R146: 37230.03501 | S146: -1385.58 | U146: 134 | V146: 1383.58 | W146: 50 | X146: 1333.58 | Y146: 121.75 | Z146: 1211.83 | AA146: 57226.78 | AB146: 1385.58 | AC146: 853.8722733 | AD146: 37278.35842 | AE146: -1385.58
A147: 136 | D147: 136 | E147: 2028-02-20 | G147: 1059.37 | H147: 56012.42 | I147: 136 | J147: 1383.58 | K147: 50 | L147: 1333.58 | M147: 119.22 | N147: 1214.36 | O147: 56012.42 | P147: 1385.58 | Q147: 849.4286518 | R147: 36377.54472 | S147: -1385.58 | U147: 135 | V147: 1383.58 | W147: 50 | X147: 1333.58 | Y147: 119.22 | Z147: 1214.36 | AA147: 56012.42 | AB147: 1385.58 | AC147: 850.7931136 | AD147: 36424.48614 | AE147: -1385.58
A148: 137 | D148: 137 | E148: 2028-03-20 | G148: 1060.37 | H148: 54795.53 | I148: 137 | J148: 1383.58 | K148: 50 | L148: 1333.58 | M148: 116.69 | N148: 1216.89 | O148: 54795.53 | P148: 1385.58 | Q148: 846.3780102 | R148: 35528.11607 | S148: -1385.58 | U148: 136 | V148: 1383.58 | W148: 50 | X148: 1333.58 | Y148: 116.69 | Z148: 1216.89 | AA148: 54795.53 | AB148: 1385.58 | AC148: 847.7250577 | AD148: 35573.69303 | AE148: -1385.58
A149: 138 | D149: 138 | E149: 2028-04-20 | G149: 1061.37 | H149: 53576.11 | I149: 138 | J149: 1383.58 | K149: 50 | L149: 1333.58 | M149: 114.16 | N149: 1219.42 | O149: 53576.11 | P149: 1385.58 | Q149: 843.3383247 | R149: 34681.73806 | S149: -1385.58 | U149: 137 | V149: 1383.58 | W149: 50 | X149: 1333.58 | Y149: 114.16 | Z149: 1219.42 | AA149: 53576.11 | AB149: 1385.58 | AC149: 844.6680655 | AD149: 34725.96797 | AE149: -1385.58
A150: 139 | D150: 139 | E150: 2028-05-20 | G150: 1062.37 | H150: 52354.15 | I150: 139 | J150: 1383.58 | K150: 50 | L150: 1333.58 | M150: 111.62 | N150: 1221.96 | O150: 52354.15 | P150: 1385.58 | Q150: 840.3095559 | R150: 33838.39973 | S150: -1385.58 | U150: 138 | V150: 1383.58 | W150: 50 | X150: 1333.58 | Y150: 111.62 | Z150: 1221.96 | AA150: 52354.15 | AB150: 1385.58 | AC150: 841.6220972 | AD150: 33881.29991 | AE150: -1385.58
A151: 140 | D151: 140 | E151: 2028-06-20 | G151: 1063.37 | H151: 51129.64 | I151: 140 | J151: 1383.58 | K151: 50 | L151: 1333.58 | M151: 109.07 | N151: 1224.51 | O151: 51129.64 | P151: 1385.58 | Q151: 837.2916646 | R151: 32998.09017 | S151: -1385.58 | U151: 139 | V151: 1383.58 | W151: 50 | X151: 1333.58 | Y151: 109.07 | Z151: 1224.51 | AA151: 51129.64 | AB151: 1385.58 | AC151: 838.587113 | AD151: 33039.67781 | AE151: -1385.58
A152: 141 | D152: 141 | E152: 2028-07-20 | G152: 1064.37 | H152: 49902.58 | I152: 141 | J152: 1383.58 | K152: 50 | L152: 1333.58 | M152: 106.52 | N152: 1227.06 | O152: 49902.58 | P152: 1385.58 | Q152: 834.2846118 | R152: 32160.79851 | S152: -1385.58 | U152: 140 | V152: 1383.58 | W152: 50 | X152: 1333.58 | Y152: 106.52 | Z152: 1227.06 | AA152: 49902.58 | AB152: 1385.58 | AC152: 835.5630733 | AD152: 32201.0907 | AE152: -1385.58
A153: 142 | D153: 142 | E153: 2028-08-20 | G153: 1065.37 | H153: 48672.96 | I153: 142 | J153: 1383.58 | K153: 50 | L153: 1333.58 | M153: 103.96 | N153: 1229.62 | O153: 48672.96 | P153: 1385.58 | Q153: 831.2883585 | R153: 31326.5139 | S153: -1385.58 | U153: 141 | V153: 1383.58 | W153: 50 | X153: 1333.58 | Y153: 103.96 | Z153: 1229.62 | AA153: 48672.96 | AB153: 1385.58 | AC153: 832.5499386 | AD153: 31365.52762 | AE153: -1385.58
A154: 143 | D154: 143 | E154: 2028-09-20 | G154: 1066.37 | H154: 47440.78 | I154: 143 | J154: 1383.58 | K154: 50 | L154: 1333.58 | M154: 101.4 | N154: 1232.18 | O154: 47440.78 | P154: 1385.58 | Q154: 828.302866 | R154: 30495.22554 | S154: -1385.58 | U154: 142 | V154: 1383.58 | W154: 50 | X154: 1333.58 | Y154: 101.4 | Z154: 1232.18 | AA154: 47440.78 | AB154: 1385.58 | AC154: 829.5476697 | AD154: 30532.97768 | AE154: -1385.58
A155: 144 | D155: 144 | E155: 2028-10-20 | G155: 1067.37 | H155: 46206.03 | I155: 144 | J155: 1383.58 | K155: 50 | L155: 1333.58 | M155: 98.83 | N155: 1234.75 | O155: 46206.03 | P155: 1385.58 | Q155: 825.3280956 | R155: 29666.92267 | S155: -1385.58 | U155: 143 | V155: 1383.58 | W155: 50 | X155: 1333.58 | Y155: 98.83 | Z155: 1234.75 | AA155: 46206.03 | AB155: 1385.58 | AC155: 826.5562272 | AD155: 29703.43001 | AE155: -1385.58
A156: 145 | D156: 145 | E156: 2028-11-20 | G156: 1068.37 | H156: 44968.71 | I156: 145 | J156: 1383.58 | K156: 50 | L156: 1333.58 | M156: 96.26 | N156: 1237.32 | O156: 44968.71 | P156: 1985.58 | Q156: 1178.473656 | R156: 28841.59458 | S156: -1985.58 | U156: 144 | V156: 1383.58 | W156: 50 | X156: 1333.58 | Y156: 96.26 | Z156: 1237.32 | AA156: 44968.71 | AB156: 1985.58 | AC156: 1180.209865 | AD156: 28876.87379 | AE156: -1985.58
A157: 146 | D157: 146 | E157: 2028-12-20 | G157: 1069.37 | H157: 43728.81 | I157: 146 | J157: 1383.58 | K157: 50 | L157: 1333.58 | M157: 93.68 | N157: 1239.9 | O157: 43728.81 | P157: 1385.58 | Q157: 819.4105672 | R157: 27663.12092 | S157: -1385.58 | U157: 145 | V157: 1383.58 | W157: 50 | X157: 1333.58 | Y157: 93.68 | Z157: 1239.9 | AA157: 43728.81 | AB157: 1385.58 | AC157: 820.6056659 | AD157: 27696.66392 | AE157: -1385.58
A158: 147 | D158: 147 | E158: 2029-01-20 | G158: 1070.37 | H158: 42486.33 | I158: 147 | J158: 1383.58 | K158: 50 | L158: 1333.58 | M158: 91.1 | N158: 1242.48 | O158: 42486.33 | P158: 1385.58 | Q158: 816.4677327 | R158: 26843.71035 | S158: -1385.58 | U158: 146 | V158: 1383.58 | W158: 50 | X158: 1333.58 | Y158: 91.1 | Z158: 1242.48 | AA158: 42486.33 | AB158: 1385.58 | AC158: 817.6464693 | AD158: 26876.05826 | AE158: -1385.58
A159: 148 | D159: 148 | E159: 2029-02-20 | G159: 1071.37 | H159: 41241.26 | I159: 148 | J159: 1383.58 | K159: 50 | L159: 1333.58 | M159: 88.51 | N159: 1245.07 | O159: 41241.26 | P159: 1385.58 | Q159: 813.535467 | R159: 26027.24262 | S159: -1385.58 | U159: 147 | V159: 1383.58 | W159: 50 | X159: 1333.58 | Y159: 88.51 | Z159: 1245.07 | AA159: 41241.26 | AB159: 1385.58 | AC159: 814.6979439 | AD159: 26058.41179 | AE159: -1385.58
A160: 149 | D160: 149 | E160: 2029-03-20 | G160: 1072.37 | H160: 39993.6 | I160: 149 | J160: 1383.58 | K160: 50 | L160: 1333.58 | M160: 85.92 | N160: 1247.66 | O160: 39993.6 | P160: 1385.58 | Q160: 810.6137323 | R160: 25213.70716 | S160: -1385.58 | U160: 148 | V160: 1383.58 | W160: 50 | X160: 1333.58 | Y160: 85.92 | Z160: 1247.66 | AA160: 39993.6 | AB160: 1385.58 | AC160: 811.7600512 | AD160: 25243.71384 | AE160: -1385.58
A161: 150 | D161: 150 | E161: 2029-04-20 | G161: 1073.37 | H161: 38743.34 | I161: 150 | J161: 1383.58 | K161: 50 | L161: 1333.58 | M161: 83.32 | N161: 1250.26 | O161: 38743.34 | P161: 1385.58 | Q161: 807.7024908 | R161: 24403.09342 | S161: -1385.58 | U161: 149 | V161: 1383.58 | W161: 50 | X161: 1333.58 | Y161: 83.32 | Z161: 1250.26 | AA161: 38743.34 | AB161: 1385.58 | AC161: 808.8327529 | AD161: 24431.95379 | AE161: -1385.58
A162: 151 | D162: 151 | E162: 2029-05-20 | G162: 1074.37 | H162: 37490.48 | I162: 151 | J162: 1383.58 | K162: 50 | L162: 1333.58 | M162: 80.72 | N162: 1252.86 | O162: 37490.48 | P162: 1385.58 | Q162: 804.8017046 | R162: 23595.39093 | S162: -1385.58 | U162: 150 | V162: 1383.58 | W162: 50 | X162: 1333.58 | Y162: 80.72 | Z162: 1252.86 | AA162: 37490.48 | AB162: 1385.58 | AC162: 805.9160108 | AD162: 23623.12104 | AE162: -1385.58
A163: 152 | D163: 152 | E163: 2029-06-20 | G163: 1075.37 | H163: 36235.01 | I163: 152 | J163: 1383.58 | K163: 50 | L163: 1333.58 | M163: 78.11 | N163: 1255.47 | O163: 36235.01 | P163: 1385.58 | Q163: 801.9113364 | R163: 22790.58923 | S163: -1385.58 | U163: 151 | V163: 1383.58 | W163: 50 | X163: 1333.58 | Y163: 78.11 | Z163: 1255.47 | AA163: 36235.01 | AB163: 1385.58 | AC163: 803.0097868 | AD163: 22817.20503 | AE163: -1385.58
A164: 153 | D164: 153 | E164: 2029-07-20 | G164: 1076.37 | H164: 34976.92 | I164: 153 | J164: 1383.58 | K164: 50 | L164: 1333.58 | M164: 75.49 | N164: 1258.09 | O164: 34976.92 | P164: 1385.58 | Q164: 799.0313487 | R164: 21988.67789 | S164: -1385.58 | U164: 152 | V164: 1383.58 | W164: 50 | X164: 1333.58 | Y164: 75.49 | Z164: 1258.09 | AA164: 34976.92 | AB164: 1385.58 | AC164: 800.1140429 | AD164: 22014.19524 | AE164: -1385.58
A165: 154 | D165: 154 | E165: 2029-08-20 | G165: 1077.37 | H165: 33716.21 | I165: 154 | J165: 1383.58 | K165: 50 | L165: 1333.58 | M165: 72.87 | N165: 1260.71 | O165: 33716.21 | P165: 1385.58 | Q165: 796.1617041 | R165: 21189.64654 | S165: -1385.58 | U165: 153 | V165: 1383.58 | W165: 50 | X165: 1333.58 | Y165: 72.87 | Z165: 1260.71 | AA165: 33716.21 | AB165: 1385.58 | AC165: 797.2287415 | AD165: 21214.0812 | AE165: -1385.58
A166: 155 | D166: 155 | E166: 2029-09-20 | G166: 1078.37 | H166: 32452.87 | I166: 155 | J166: 1383.58 | K166: 50 | L166: 1333.58 | M166: 70.24 | N166: 1263.34 | O166: 32452.87 | P166: 1385.58 | Q166: 793.3023656 | R166: 20393.48484 | S166: -1385.58 | U166: 154 | V166: 1383.58 | W166: 50 | X166: 1333.58 | Y166: 70.24 | Z166: 1263.34 | AA166: 32452.87 | AB166: 1385.58 | AC166: 794.3538447 | AD166: 20416.85246 | AE166: -1385.58
A167: 156 | D167: 156 | E167: 2029-10-20 | G167: 1079.37 | H167: 31186.9 | I167: 156 | J167: 1383.58 | K167: 50 | L167: 1333.58 | M167: 67.61 | N167: 1265.97 | O167: 31186.9 | P167: 1385.58 | Q167: 790.4532962 | R167: 19600.18247 | S167: -1385.58 | U167: 155 | V167: 1383.58 | W167: 50 | X167: 1333.58 | Y167: 67.61 | Z167: 1265.97 | AA167: 31186.9 | AB167: 1385.58 | AC167: 791.4893152 | AD167: 19622.49861 | AE167: -1385.58
A168: 157 | D168: 157 | E168: 2029-11-20 | G168: 1080.37 | H168: 29918.29 | I168: 157 | J168: 1383.58 | K168: 50 | L168: 1333.58 | M168: 64.97 | N168: 1268.61 | O168: 29918.29 | P168: 1985.58 | Q168: 1128.676451 | R168: 18809.72918 | S168: -1985.58 | U168: 156 | V168: 1383.58 | W168: 50 | X168: 1333.58 | Y168: 64.97 | Z168: 1268.61 | AA168: 29918.29 | AB168: 1985.58 | AC168: 1130.139084 | AD168: 18831.0093 | AE168: -1985.58
A169: 158 | D169: 158 | E169: 2029-12-20 | G169: 1081.37 | H169: 28647.04 | I169: 158 | J169: 1383.58 | K169: 50 | L169: 1333.58 | M169: 62.33 | N169: 1271.25 | O169: 28647.04 | P169: 1385.58 | Q169: 784.785817 | R169: 17681.05273 | S169: -1385.58 | U169: 157 | V169: 1383.58 | W169: 50 | X169: 1333.58 | Y169: 62.33 | Z169: 1271.25 | AA169: 28647.04 | AB169: 1385.58 | AC169: 785.7912083 | AD169: 17700.87021 | AE169: -1385.58
A170: 159 | D170: 159 | E170: 2030-01-20 | G170: 1082.37 | H170: 27373.14 | I170: 159 | J170: 1383.58 | K170: 50 | L170: 1333.58 | M170: 59.68 | N170: 1273.9 | O170: 27373.14 | P170: 1385.58 | Q170: 781.9673339 | R170: 16896.26691 | S170: -1385.58 | U170: 158 | V170: 1383.58 | W170: 50 | X170: 1333.58 | Y170: 59.68 | Z170: 1273.9 | AA170: 27373.14 | AB170: 1385.58 | AC170: 782.9575565 | AD170: 16915.079 | AE170: -1385.58
A171: 160 | D171: 160 | E171: 2030-02-20 | G171: 1083.37 | H171: 26096.59 | I171: 160 | J171: 1383.58 | K171: 50 | L171: 1333.58 | M171: 57.03 | N171: 1276.55 | O171: 26096.59 | P171: 1385.58 | Q171: 779.1589731 | R171: 16114.29957 | S171: -1385.58 | U171: 159 | V171: 1383.58 | W171: 50 | X171: 1333.58 | Y171: 57.03 | Z171: 1276.55 | AA171: 26096.59 | AB171: 1385.58 | AC171: 780.1341233 | AD171: 16132.12145 | AE171: -1385.58
A172: 161 | D172: 161 | E172: 2030-03-20 | G172: 1084.37 | H172: 24817.38 | I172: 161 | J172: 1383.58 | K172: 50 | L172: 1333.58 | M172: 54.37 | N172: 1279.21 | O172: 24817.38 | P172: 1385.58 | Q172: 776.3606983 | R172: 15335.1406 | S172: -1385.58 | U172: 160 | V172: 1383.58 | W172: 50 | X172: 1333.58 | Y172: 54.37 | Z172: 1279.21 | AA172: 24817.38 | AB172: 1385.58 | AC172: 777.3208717 | AD172: 15351.98732 | AE172: -1385.58
A173: 162 | D173: 162 | E173: 2030-04-20 | G173: 1085.37 | H173: 23535.5 | I173: 162 | J173: 1383.58 | K173: 50 | L173: 1333.58 | M173: 51.7 | N173: 1281.88 | O173: 23535.5 | P173: 1385.58 | Q173: 773.5724733 | R173: 14558.7799 | S173: -1385.58 | U173: 161 | V173: 1383.58 | W173: 50 | X173: 1333.58 | Y173: 51.7 | Z173: 1281.88 | AA173: 23535.5 | AB173: 1385.58 | AC173: 774.5177649 | AD173: 14574.66645 | AE173: -1385.58
A174: 163 | D174: 163 | E174: 2030-05-20 | G174: 1086.37 | H174: 22250.95 | I174: 163 | J174: 1383.58 | K174: 50 | L174: 1333.58 | M174: 49.03 | N174: 1284.55 | O174: 22250.95 | P174: 1385.58 | Q174: 770.7942618 | R174: 13785.20743 | S174: -1385.58 | U174: 162 | V174: 1383.58 | W174: 50 | X174: 1333.58 | Y174: 49.03 | Z174: 1284.55 | AA174: 22250.95 | AB174: 1385.58 | AC174: 771.7247665 | AD174: 13800.14869 | AE174: -1385.58
A175: 164 | D175: 164 | E175: 2030-06-20 | G175: 1087.37 | H175: 20963.73 | I175: 164 | J175: 1383.58 | K175: 50 | L175: 1333.58 | M175: 46.36 | N175: 1287.22 | O175: 20963.73 | P175: 1385.58 | Q175: 768.0260281 | R175: 13014.41317 | S175: -1385.58 | U175: 163 | V175: 1383.58 | W175: 50 | X175: 1333.58 | Y175: 46.36 | Z175: 1287.22 | AA175: 20963.73 | AB175: 1385.58 | AC175: 768.94184 | AD175: 13028.42392 | AE175: -1385.58
A176: 165 | D176: 165 | E176: 2030-07-20 | G176: 1088.37 | H176: 19673.82 | I176: 165 | J176: 1383.58 | K176: 50 | L176: 1333.58 | M176: 43.67 | N176: 1289.91 | O176: 19673.82 | P176: 1385.58 | Q176: 765.2677362 | R176: 12246.38714 | S176: -1385.58 | U176: 164 | V176: 1383.58 | W176: 50 | X176: 1333.58 | Y176: 43.67 | Z176: 1289.91 | AA176: 19673.82 | AB176: 1385.58 | AC176: 766.168949 | AD176: 12259.48208 | AE176: -1385.58
A177: 166 | D177: 166 | E177: 2030-08-20 | G177: 1089.37 | H177: 18381.23 | I177: 166 | J177: 1383.58 | K177: 50 | L177: 1333.58 | M177: 40.99 | N177: 1292.59 | O177: 18381.23 | P177: 1385.58 | Q177: 762.5193504 | R177: 11481.1194 | S177: -1385.58 | U177: 165 | V177: 1383.58 | W177: 50 | X177: 1333.58 | Y177: 40.99 | Z177: 1292.59 | AA177: 18381.23 | AB177: 1385.58 | AC177: 763.4060574 | AD177: 11493.31313 | AE177: -1385.58
A178: 167 | D178: 167 | E178: 2030-09-20 | G178: 1090.37 | H178: 17085.94 | I178: 167 | J178: 1383.58 | K178: 50 | L178: 1333.58 | M178: 38.29 | N178: 1295.29 | O178: 17085.94 | P178: 1385.58 | Q178: 759.7808352 | R178: 10718.60005 | S178: -1385.58 | U178: 166 | V178: 1383.58 | W178: 50 | X178: 1333.58 | Y178: 38.29 | Z178: 1295.29 | AA178: 17085.94 | AB178: 1385.58 | AC178: 760.653129 | AD178: 10729.90708 | AE178: -1385.58
A179: 168 | D179: 168 | E179: 2030-10-20 | G179: 1091.37 | H179: 15787.96 | I179: 168 | J179: 1383.58 | K179: 50 | L179: 1333.58 | M179: 35.6 | N179: 1297.98 | O179: 15787.96 | P179: 1385.58 | Q179: 757.0521551 | R179: 9958.819218 | S179: -1385.58 | U179: 167 | V179: 1383.58 | W179: 50 | X179: 1333.58 | Y179: 35.6 | Z179: 1297.98 | AA179: 15787.96 | AB179: 1385.58 | AC179: 757.910128 | AD179: 9969.253946 | AE179: -1385.58
A180: 169 | D180: 169 | E180: 2030-11-20 | G180: 1092.37 | H180: 14487.27 | I180: 169 | J180: 1383.58 | K180: 50 | L180: 1333.58 | M180: 32.89 | N180: 1300.69 | O180: 14487.27 | P180: 1985.58 | Q180: 1080.983461 | R180: 9201.767063 | S180: -1985.58 | U180: 168 | V180: 1383.58 | W180: 50 | X180: 1333.58 | Y180: 32.89 | Z180: 1300.69 | AA180: 14487.27 | AB180: 1985.58 | AC180: 1082.192573 | AD180: 9211.343818 | AE180: -1985.58
A181: 170 | D181: 170 | E181: 2030-12-20 | G181: 1093.37 | H181: 13183.87 | I181: 170 | J181: 1383.58 | K181: 50 | L181: 1333.58 | M181: 30.18 | N181: 1303.4 | O181: 13183.87 | P181: 1385.58 | Q181: 751.6241591 | R181: 8120.783602 | S181: -1385.58 | U181: 169 | V181: 1383.58 | W181: 50 | X181: 1333.58 | Y181: 30.18 | Z181: 1303.4 | AA181: 13183.87 | AB181: 1385.58 | AC181: 752.4537652 | AD181: 8129.151246 | AE181: -1385.58
A182: 171 | D182: 171 | E182: 2031-01-20 | G182: 1094.37 | H182: 11877.76 | I182: 171 | J182: 1383.58 | K182: 50 | L182: 1333.58 | M182: 27.47 | N182: 1306.11 | O182: 11877.76 | P182: 1385.58 | Q182: 748.9247729 | R182: 7369.159443 | S182: -1385.58 | U182: 170 | V182: 1383.58 | W182: 50 | X182: 1333.58 | Y182: 27.47 | Z182: 1306.11 | AA182: 11877.76 | AB182: 1385.58 | AC182: 749.740332 | AD182: 7376.697481 | AE182: -1385.58
A183: 172 | D183: 172 | E183: 2031-02-20 | G183: 1095.37 | H183: 10568.93 | I183: 172 | J183: 1383.58 | K183: 50 | L183: 1333.58 | M183: 24.75 | N183: 1308.83 | O183: 10568.93 | P183: 1385.58 | Q183: 746.2350814 | R183: 6620.23467 | S183: -1385.58 | U183: 171 | V183: 1383.58 | W183: 50 | X183: 1333.58 | Y183: 24.75 | Z183: 1308.83 | AA183: 10568.93 | AB183: 1385.58 | AC183: 747.0366838 | AD183: 6626.957149 | AE183: -1385.58
A184: 173 | D184: 173 | E184: 2031-03-20 | G184: 1096.37 | H184: 9257.37 | I184: 173 | J184: 1383.58 | K184: 50 | L184: 1333.58 | M184: 22.02 | N184: 1311.56 | O184: 9257.37 | P184: 1385.58 | Q184: 743.5550495 | R184: 5873.999589 | S184: -1385.58 | U184: 172 | V184: 1383.58 | W184: 50 | X184: 1333.58 | Y184: 22.02 | Z184: 1311.56 | AA184: 9257.37 | AB184: 1385.58 | AC184: 744.3427853 | AD184: 5879.920465 | AE184: -1385.58
A185: 174 | D185: 174 | E185: 2031-04-20 | G185: 1097.37 | H185: 7943.08 | I185: 174 | J185: 1383.58 | K185: 50 | L185: 1333.58 | M185: 19.29 | N185: 1314.29 | O185: 7943.08 | P185: 1385.58 | Q185: 740.8846428 | R185: 5130.444539 | S185: -1385.58 | U185: 173 | V185: 1383.58 | W185: 50 | X185: 1333.58 | Y185: 19.29 | Z185: 1314.29 | AA185: 7943.08 | AB185: 1385.58 | AC185: 741.6586013 | AD185: 5135.577679 | AE185: -1385.58
A186: 175 | D186: 175 | E186: 2031-05-20 | G186: 1098.37 | H186: 6626.05 | I186: 175 | J186: 1383.58 | K186: 50 | L186: 1333.58 | M186: 16.55 | N186: 1317.03 | O186: 6626.05 | P186: 1385.58 | Q186: 738.2238266 | R186: 4389.559896 | S186: -1385.58 | U186: 174 | V186: 1383.58 | W186: 50 | X186: 1333.58 | Y186: 16.55 | Z186: 1317.03 | AA186: 6626.05 | AB186: 1385.58 | AC186: 738.9840967 | AD186: 4393.919078 | AE186: -1385.58
A187: 176 | D187: 176 | E187: 2031-06-20 | G187: 1099.37 | H187: 5306.27 | I187: 176 | J187: 1383.58 | K187: 50 | L187: 1333.58 | M187: 13.8 | N187: 1319.78 | O187: 5306.27 | P187: 1385.58 | Q187: 735.5725664 | R187: 3651.33607 | S187: -1385.58 | U187: 175 | V187: 1383.58 | W187: 50 | X187: 1333.58 | Y187: 13.8 | Z187: 1319.78 | AA187: 5306.27 | AB187: 1385.58 | AC187: 736.3192367 | AD187: 3654.934981 | AE187: -1385.58
A188: 177 | D188: 177 | E188: 2031-07-20 | G188: 1100.37 | H188: 3983.74 | I188: 177 | J188: 1383.58 | K188: 50 | L188: 1333.58 | M188: 11.05 | N188: 1322.53 | O188: 3983.74 | P188: 1385.58 | Q188: 732.930828 | R188: 2915.763503 | S188: -1385.58 | U188: 176 | V188: 1383.58 | W188: 50 | X188: 1333.58 | Y188: 11.05 | Z188: 1322.53 | AA188: 3983.74 | AB188: 1385.58 | AC188: 733.6639865 | AD188: 2918.615745 | AE188: -1385.58
A189: 178 | D189: 178 | E189: 2031-08-20 | G189: 1101.37 | H189: 2658.46 | I189: 178 | J189: 1383.58 | K189: 50 | L189: 1333.58 | M189: 8.3 | N189: 1325.28 | O189: 2658.46 | P189: 1385.58 | Q189: 730.2985772 | R189: 2182.832675 | S189: -1385.58 | U189: 177 | V189: 1383.58 | W189: 50 | X189: 1333.58 | Y189: 8.3 | Z189: 1325.28 | AA189: 2658.46 | AB189: 1385.58 | AC189: 731.0183114 | AD189: 2184.951758 | AE189: -1385.58
A190: 179 | D190: 179 | E190: 2031-09-20 | G190: 1102.37 | H190: 1330.42 | I190: 179 | J190: 1383.58 | K190: 50 | L190: 1333.58 | M190: 5.54 | N190: 1328.04 | O190: 1330.42 | P190: 1385.58 | Q190: 727.6757798 | R190: 1452.534098 | S190: -1385.58 | U190: 178 | V190: 1383.58 | W190: 50 | X190: 1333.58 | Y190: 5.54 | Z190: 1328.04 | AA190: 1330.42 | AB190: 1385.58 | AC190: 728.382177 | AD190: 1453.933447 | AE190: -1385.58
A191: 180 | D191: 180 | E191: 2031-10-20 | G191: 526.42 | H191: -0.39 | I191: 180 | J191: 1383.19 | K191: 50 | L191: 1333.19 | M191: 2.77 | N191: 1330.42 | O191: 0 | P191: 1385.19 | Q191: 724.8583182 | R191: 724.8583182 | S191: -1385.19 | U191: 179 | V191: 1383.19 | W191: 50 | X191: 1333.19 | Y191: 2.77 | Z191: 1330.42 | AA191: 0 | AB191: 1385.19 | AC191: 725.5512699 | AD191: 725.5512699 | AE191: -1385.19
A192: 181 | D192: 181 | E192: 00:00:00 | G192: 527.42 | H192: 0 | I192: 181 | J192: 0 | K192: 0 | L192: 0 | M192: 0 | N192: 0 | O192: 0 | P192: 0 | Q192: 0 | R192: 0 | S192: 0 | U192: 180 | V192: 0 | W192: 0 | X192: 0 | Y192: =IF(R192=0,0,IF($B$4="Apériodiques",M192,ROUND((AA191*$F$4/12*P562)+(AA191*$F$4/C562*Q562),2))) -> 0 | Z192: 0 | AA192: 0 | AB192: 0 | AC192: 0 | AD192: 0 | AE192: 0
A193: 182 | D193: 182 | E193: 00:00:00 | G193: 528.42 | H193: 0 | I193: 182 | J193: 0 | K193: 0 | L193: 0 | M193: 0 | N193: 0 | O193: 0 | P193: 0 | Q193: 0 | R193: 0 | S193: 0 | U193: 181 | V193: 0 | W193: 0 | X193: 0 | Y193: =IF(R193=0,0,IF($B$4="Apériodiques",M193,ROUND((AA192*$F$4/12*P563)+(AA192*$F$4/C563*Q563),2))) -> 0 | Z193: 0 | AA193: 0 | AB193: 0 | AC193: 0 | AD193: 0 | AE193: 0
A194: 183 | D194: 183 | E194: 00:00:00 | G194: 529.42 | H194: 0 | I194: 183 | J194: 0 | K194: 0 | L194: 0 | M194: 0 | N194: 0 | O194: 0 | P194: 0 | Q194: 0 | R194: 0 | S194: 0 | U194: 182 | V194: 0 | W194: 0 | X194: 0 | Y194: 0 | Z194: 0 | AA194: 0 | AB194: 0 | AC194: 0 | AD194: 0 | AE194: 0
A195: 184 | D195: 184 | E195: 00:00:00 | G195: 530.42 | H195: 0 | I195: 184 | J195: 0 | K195: 0 | L195: 0 | M195: 0 | N195: 0 | O195: 0 | P195: 0 | Q195: 0 | R195: 0 | S195: 0 | U195: 183 | V195: 0 | W195: 0 | X195: 0 | Y195: 0 | Z195: 0 | AA195: 0 | AB195: 0 | AC195: 0 | AD195: 0 | AE195: 0
A196: 185 | D196: 185 | E196: 00:00:00 | G196: 531.42 | H196: 0 | I196: 185 | J196: 0 | K196: 0 | L196: 0 | M196: 0 | N196: 0 | O196: 0 | P196: 0 | Q196: 0 | R196: 0 | S196: 0 | U196: 184 | V196: 0 | W196: 0 | X196: 0 | Y196: 0 | Z196: 0 | AA196: 0 | AB196: 0 | AC196: 0 | AD196: 0 | AE196: 0
A197: 186 | D197: 186 | E197: 00:00:00 | G197: 532.42 | H197: 0 | I197: 186 | J197: 0 | K197: 0 | L197: 0 | M197: 0 | N197: 0 | O197: 0 | P197: 0 | Q197: 0 | R197: 0 | S197: 0 | U197: 185 | V197: 0 | W197: 0 | X197: 0 | Y197: 0 | Z197: 0 | AA197: 0 | AB197: 0 | AC197: 0 | AD197: 0 | AE197: 0
A198: 187 | D198: 187 | E198: 00:00:00 | G198: 533.42 | H198: 0 | I198: 187 | J198: 0 | K198: 0 | L198: 0 | M198: 0 | N198: 0 | O198: 0 | P198: 0 | Q198: 0 | R198: 0 | S198: 0 | U198: 186 | V198: 0 | W198: 0 | X198: 0 | Y198: 0 | Z198: 0 | AA198: 0 | AB198: 0 | AC198: 0 | AD198: 0 | AE198: 0
A199: 188 | D199: 188 | E199: 00:00:00 | G199: 534.42 | H199: 0 | I199: 188 | J199: 0 | K199: 0 | L199: 0 | M199: 0 | N199: 0 | O199: 0 | P199: 0 | Q199: 0 | R199: 0 | S199: 0 | U199: 187 | V199: 0 | W199: 0 | X199: 0 | Y199: 0 | Z199: 0 | AA199: 0 | AB199: 0 | AC199: 0 | AD199: 0 | AE199: 0
A200: 189 | D200: 189 | E200: 00:00:00 | G200: 535.42 | H200: 0 | I200: 189 | J200: 0 | K200: 0 | L200: 0 | M200: 0 | N200: 0 | O200: 0 | P200: 0 | Q200: 0 | R200: 0 | S200: 0 | U200: 188 | V200: 0 | W200: 0 | X200: 0 | Y200: 0 | Z200: 0 | AA200: 0 | AB200: 0 | AC200: 0 | AD200: 0 | AE200: 0
A201: 190 | D201: 190 | E201: 00:00:00 | G201: 536.42 | H201: 0 | I201: 190 | J201: 0 | K201: 0 | L201: 0 | M201: 0 | N201: 0 | O201: 0 | P201: 0 | Q201: 0 | R201: 0 | S201: 0 | U201: 189 | V201: 0 | W201: 0 | X201: 0 | Y201: 0 | Z201: 0 | AA201: 0 | AB201: 0 | AC201: 0 | AD201: 0 | AE201: 0
... 543 more rows

Sheet Feuil2

Sheet Feuil3
